Date Occurred,Local Authority Department,Beneficiary,Amount,Summary of Purpose,Merchant Category,Value Added Tax that cannot be recovered 
30/12/2014,EDUCATION AND SOCIAL SERVICES,EURO HOTEL CLAPHAM,150.00 ,"Hotels, motels & resorts",Hotels and Accommodation,Not applicable
30/12/2014,EDUCATION AND SOCIAL SERVICES,EURO HOTEL CLAPHAM,375.00 ,"Hotels, motels & resorts",Hotels and Accommodation,Not applicable
31/12/2014,EDUCATION AND SOCIAL SERVICES,OYSTER BUS AUTOTOP,20.00 ,Passenger railways,Travel - Air/Rail/Road,Not applicable
31/12/2014,HOUSING AND COMMUNITY SERVICES,OYSTER BUS AUTOTOP,20.00 ,Passenger railways,Travel - Air/Rail/Road,Not applicable
31/12/2014,HOUSING AND COMMUNITY SERVICES,LAMBETH PCN PAYMENTS,130.00 ,Government services,Statutory Bodies,Not applicable
31/12/2014,HOUSING AND COMMUNITY SERVICES,WWW.DVLA.GOV.UK,222.50 ,Government services,Statutory Bodies,Not applicable
31/12/2014,HOUSING AND COMMUNITY SERVICES,WWW.DVLA.GOV.UK,12.50 ,Government services,Statutory Bodies,Not applicable
31/12/2014,HOUSING AND COMMUNITY SERVICES,WWW.DVLA.GOV.UK,147.50 ,Government services,Statutory Bodies,Not applicable
31/12/2014,HOUSING AND COMMUNITY SERVICES,WWW.DVLA.GOV.UK,227.50 ,Government services,Statutory Bodies,Not applicable
31/12/2014,HOUSING AND COMMUNITY SERVICES,WWW.DVLA.GOV.UK,32.50 ,Government services,Statutory Bodies,Not applicable
31/12/2014,HOUSING AND COMMUNITY SERVICES,WWW.DVLA.GOV.UK,267.50 ,Government services,Statutory Bodies,Not applicable
31/12/2014,HOUSING AND COMMUNITY SERVICES,WWW.DVLA.GOV.UK,267.50 ,Government services,Statutory Bodies,Not applicable
31/12/2014,HOUSING AND COMMUNITY SERVICES,WWW.DVLA.GOV.UK,267.50 ,Government services,Statutory Bodies,Not applicable
01/01/2015,HOUSING AND COMMUNITY SERVICES,OYSTER BUS AUTOTOP,20.00 ,Passenger railways,Travel - Air/Rail/Road,Not applicable
01/01/2015,HOUSING AND COMMUNITY SERVICES,OYSTER BUS AUTOTOP,20.00 ,Passenger railways,Travel - Air/Rail/Road,Not applicable
02/01/2015,EDUCATION AND SOCIAL SERVICES,WEBTIS,48.30 ,Passenger railways,Travel - Air/Rail/Road,Not applicable
02/01/2015,HOUSING AND COMMUNITY SERVICES,OYSTER BUS AUTOTOP,20.00 ,Passenger railways,Travel - Air/Rail/Road,Not applicable
03/01/2015,EDUCATION AND SOCIAL SERVICES,H&M 756 PUTNEY,-44.98 ,Men & womens clothing shops,General Retail and Wholesale,Not applicable
04/01/2015,HOUSING AND COMMUNITY SERVICES,TRAVELODGE WEBSITE,51.00 ,Emergency Accommodation,Hotels and Accommodation,Not applicable
05/01/2015,SCHOOLS,TESCO STORES 5999,68.55 ,Grocery stores,General Retail and Wholesale,Not applicable
05/01/2015,EDUCATION AND SOCIAL SERVICES,FGW WEBSALES,-70.50 ,Passenger railways,Travel - Air/Rail/Road,Not applicable
05/01/2015,ADMINISTRATION,Amazon  Mktplce EU-UK,23.52 ,Book stores,Books and Periodicals,Not applicable
06/01/2015,EDUCATION AND SOCIAL SERVICES,OYSTER RENEW WEB,10.00 ,Passenger railways,Travel - Air/Rail/Road,Not applicable
06/01/2015,EDUCATION AND SOCIAL SERVICES,EURO HOTEL CLAPHAM,450.00 ,"Hotels, motels & resorts",Hotels and Accommodation,Not applicable
06/01/2015,EDUCATION AND SOCIAL SERVICES,WEBTIS,8.90 ,Passenger railways,Travel - Air/Rail/Road,Not applicable
06/01/2015,EDUCATION AND SOCIAL SERVICES,ASDA HOME SHOPPING,43.50 ,Grocery stores,General Retail and Wholesale,Not applicable
07/01/2015,EDUCATION AND SOCIAL SERVICES,OYSTER AUTOTOPUP,20.00 ,Passenger railways,Travel - Air/Rail/Road,Not applicable
07/01/2015,EDUCATION AND SOCIAL SERVICES,THE TRAINLINE.CO,70.60 ,Passenger railways,Travel - Air/Rail/Road,Not applicable
07/01/2015,EDUCATION AND SOCIAL SERVICES,RADISSON HOTEL LIVERP,-86.00 ,"Hotels, motels & resorts",Hotels and Accommodation,Not applicable
07/01/2015,HOUSING AND COMMUNITY SERVICES,OYSTER BUS AUTOTOP,20.00 ,Passenger railways,Travel - Air/Rail/Road,Not applicable
07/01/2015,HOUSING AND COMMUNITY SERVICES,WWW.PARKINGEYE.CO.UK,100.70 ,Car parking & garages,Travel - Air/Rail/Road,Not applicable
07/01/2015,FINANCE,OYSTER BUS AUTOTOP,20.00 ,Passenger railways,Travel - Air/Rail/Road,Not applicable
07/01/2015,ADMINISTRATION,SAINSBURYS S/MKTS,2.85 ,Grocery stores,General Retail and Wholesale,Not applicable
07/01/2015,SCHOOLS,JOLLY LEARNING LTD,12.46 ,Book stores,Books and Periodicals,Not applicable
08/01/2015,EDUCATION AND SOCIAL SERVICES,OYSTER BUS AUTOTOP,20.00 ,Passenger railways,Travel - Air/Rail/Road,Not applicable
08/01/2015,HOUSING AND COMMUNITY SERVICES,OYSTER BUS AUTOTOP,20.00 ,Passenger railways,Travel - Air/Rail/Road,Not applicable
08/01/2015,FINANCE,FINANCIAL TIMES LT,353.00 ,Catalogue & retail shops,General Retail and Wholesale,Not applicable
08/01/2015,FINANCE,OYSTER BUS AUTOTOP,20.00 ,Passenger railways,Travel - Air/Rail/Road,Not applicable
08/01/2015,SCHOOLS,Amazon EU,10.48 ,Direct sales companies,Mail Order / Direct Selling,Not applicable
09/01/2015,SCHOOLS,Amazon EU,11.98 ,Direct sales companies,Mail Order / Direct Selling,Not applicable
09/01/2015,SCHOOLS,Amazon EU,6.98 ,Direct sales companies,Mail Order / Direct Selling,Not applicable
09/01/2015,SCHOOLS,Amazon EU,5.99 ,Direct sales companies,Mail Order / Direct Selling,Not applicable
09/01/2015,EDUCATION AND SOCIAL SERVICES,OYSTER AUTOTOPUP,20.00 ,Passenger railways,Travel - Air/Rail/Road,Not applicable
09/01/2015,HOUSING AND COMMUNITY SERVICES,OYSTER AUTOTOPUP,20.00 ,Passenger railways,Travel - Air/Rail/Road,Not applicable
09/01/2015,HOUSING AND COMMUNITY SERVICES,TFL PENALTY CHARGE,65.00 ,Fines,Statutory Bodies,Not applicable
10/01/2015,HOUSING AND COMMUNITY SERVICES,OYSTER BUS AUTOTOP,20.00 ,Passenger railways,Travel - Air/Rail/Road,Not applicable
10/01/2015,ADMINISTRATION,Amazon  Mktplce EU-UK,5.80 ,Book stores,Books and Periodicals,Not applicable
10/01/2015,ADMINISTRATION,Amazon EU,11.70 ,Direct sales companies,Mail Order / Direct Selling,Not applicable
11/01/2015,EDUCATION AND SOCIAL SERVICES,OYSTER AUTOTOPUP,20.00 ,Passenger railways,Travel - Air/Rail/Road,Not applicable
11/01/2015,HOUSING AND COMMUNITY SERVICES,OYSTER AUTOTOPUP,20.00 ,Passenger railways,Travel - Air/Rail/Road,Not applicable
11/01/2015,HOUSING AND COMMUNITY SERVICES,OYSTER BUS AUTOTOP,20.00 ,Passenger railways,Travel - Air/Rail/Road,Not applicable
11/01/2015,HOUSING AND COMMUNITY SERVICES,OYSTER BUS AUTOTOP,20.00 ,Passenger railways,Travel - Air/Rail/Road,Not applicable
11/01/2015,HOUSING AND COMMUNITY SERVICES,OYSTER BUS AUTOTOP,20.00 ,Passenger railways,Travel - Air/Rail/Road,Not applicable
11/01/2015,FINANCE,OYSTER BUS AUTOTOP,20.00 ,Passenger railways,Travel - Air/Rail/Road,Not applicable
12/01/2015,EDUCATION AND SOCIAL SERVICES,EURO HOTEL CLAPHAM,225.00 ,"Hotels, motels & resorts",Hotels and Accommodation,Not applicable
12/01/2015,EDUCATION AND SOCIAL SERVICES,WWW.CAMPBEAUMONT.CO.UK,93.02 ,Travel agencies,Travel - Air/Rail/Road,Not applicable
12/01/2015,EDUCATION AND SOCIAL SERVICES,ASDA HOME SHOPPING,45.66 ,Grocery stores,General Retail and Wholesale,Not applicable
12/01/2015,HOUSING AND COMMUNITY SERVICES,TRAVELODGE WEBSITE,45.60 ,Emergency Accommodation,Hotels and Accommodation,Not applicable
12/01/2015,HOUSING AND COMMUNITY SERVICES,VIRGINTRAINS.CO.UK,56.00 ,Passenger railways,Travel - Air/Rail/Road,Not applicable
13/01/2015,FINANCE,HMCOURTS-SERVICE.G,4410.00 ,Payment of Court Fees,Statutory Bodies,Not applicable
13/01/2015,EDUCATION AND SOCIAL SERVICES,THE TRAINLINE.CO,8.90 ,Passenger railways,Travel - Air/Rail/Road,Not applicable
13/01/2015,EDUCATION AND SOCIAL SERVICES,THE TRAINLINE.CO,8.90 ,Passenger railways,Travel - Air/Rail/Road,Not applicable
13/01/2015,HOUSING AND COMMUNITY SERVICES,WWW.PARKINGEYE.CO.UK,70.00 ,Car parking & garages,Travel - Air/Rail/Road,Not applicable
14/01/2015,SCHOOLS,ITUNES.COM/BILL,72.97 ,Record shops,General Retail and Wholesale,Not applicable
14/01/2015,SCHOOLS,ITUNES.COM/BILL,54.63 ,Record shops,General Retail and Wholesale,Not applicable
14/01/2015,SCHOOLS,ITUNES.COM/BILL,82.13 ,Record shops,General Retail and Wholesale,Not applicable
14/01/2015,SCHOOLS,ITUNES.COM/BILL,91.30 ,Record shops,General Retail and Wholesale,Not applicable
14/01/2015,SCHOOLS,ITUNES.COM/BILL,54.63 ,Record shops,General Retail and Wholesale,Not applicable
14/01/2015,SCHOOLS,ITUNES.COM/BILL,54.63 ,Record shops,General Retail and Wholesale,Not applicable
14/01/2015,SCHOOLS,ITUNES.COM/BILL,91.30 ,Record shops,General Retail and Wholesale,Not applicable
14/01/2015,SCHOOLS,ITUNES.COM/BILL,14.30 ,Record shops,General Retail and Wholesale,Not applicable
14/01/2015,SCHOOLS,ITUNES.COM/BILL,41.80 ,Record shops,General Retail and Wholesale,Not applicable
14/01/2015,SCHOOLS,ITUNES.COM/BILL,54.63 ,Record shops,General Retail and Wholesale,Not applicable
14/01/2015,SCHOOLS,ITUNES.COM/BILL,82.13 ,Record shops,General Retail and Wholesale,Not applicable
14/01/2015,SCHOOLS,ITUNES.COM/BILL,72.97 ,Record shops,General Retail and Wholesale,Not applicable
14/01/2015,SCHOOLS,ITUNES.COM/BILL,72.97 ,Record shops,General Retail and Wholesale,Not applicable
14/01/2015,SCHOOLS,PAYPAL  COMPOST DIR,149.00 ,Landscape & horticultural services,Estate and Garden Services,Not applicable
14/01/2015,EDUCATION AND SOCIAL SERVICES,ARGOS RETAIL GROUP,102.97 ,Discount stores,General Retail and Wholesale,Not applicable
14/01/2015,EDUCATION AND SOCIAL SERVICES,ARGOS RETAIL GROUP,308.92 ,Discount stores,General Retail and Wholesale,Not applicable
14/01/2015,EDUCATION AND SOCIAL SERVICES,TRAVELODGE WEBSITE,132.00 ,Travelodge,Hotels and Accommodation,Not applicable
14/01/2015,HOUSING AND COMMUNITY SERVICES,OYSTER AUTOTOPUP,20.00 ,Passenger railways,Travel - Air/Rail/Road,Not applicable
14/01/2015,HOUSING AND COMMUNITY SERVICES,TFL PENALTY CHARGE,65.00 ,Fines,Statutory Bodies,Not applicable
15/01/2015,EDUCATION AND SOCIAL SERVICES,THE TRAINLINE.CO,20.50 ,Passenger railways,Travel - Air/Rail/Road,Not applicable
15/01/2015,EDUCATION AND SOCIAL SERVICES,THE TRAINLINE.CO,28.80 ,Passenger railways,Travel - Air/Rail/Road,Not applicable
15/01/2015,EDUCATION AND SOCIAL SERVICES,THE TRAINLINE.CO,-144.00 ,Passenger railways,Travel - Air/Rail/Road,Not applicable
15/01/2015,EDUCATION AND SOCIAL SERVICES,THE TRAINLINE.CO,70.60 ,Passenger railways,Travel - Air/Rail/Road,Not applicable
15/01/2015,EDUCATION AND SOCIAL SERVICES,THE TRAINLINE.CO,31.20 ,Passenger railways,Travel - Air/Rail/Road,Not applicable
15/01/2015,EDUCATION AND SOCIAL SERVICES,WEBTIS,9.60 ,Passenger railways,Travel - Air/Rail/Road,Not applicable
15/01/2015,HOUSING AND COMMUNITY SERVICES,OYSTER AUTOTOPUP,20.00 ,Passenger railways,Travel - Air/Rail/Road,Not applicable
15/01/2015,HOUSING AND COMMUNITY SERVICES,OYSTER AUTOTOPUP,20.00 ,Passenger railways,Travel - Air/Rail/Road,Not applicable
16/01/2015,EDUCATION AND SOCIAL SERVICES,OYSTER AUTOTOPUP,20.00 ,Passenger railways,Travel - Air/Rail/Road,Not applicable
16/01/2015,EDUCATION AND SOCIAL SERVICES,ARGOS B2B ONLINE,-12.48 ,Discount stores,General Retail and Wholesale,Not applicable
16/01/2015,HOUSING AND COMMUNITY SERVICES,OYSTER AUTOTOPUP,20.00 ,Passenger railways,Travel - Air/Rail/Road,Not applicable
16/01/2015,HOUSING AND COMMUNITY SERVICES,OYSTER BUS AUTOTOP,20.00 ,Passenger railways,Travel - Air/Rail/Road,Not applicable
16/01/2015,FINANCE,OYSTER BUS AUTOTOP,20.00 ,Passenger railways,Travel - Air/Rail/Road,Not applicable
16/01/2015,FINANCE,OYSTER BUS AUTOTOP,20.00 ,Passenger railways,Travel - Air/Rail/Road,Not applicable
16/01/2015,SCHOOLS,RYANAIR     22400000ZH6JT,159.08 ,Ryanair,Travel - Air/Rail/Road,Not applicable
17/01/2015,EDUCATION AND SOCIAL SERVICES,OYSTER BUS AUTOTOP,20.00 ,Passenger railways,Travel - Air/Rail/Road,Not applicable
17/01/2015,EDUCATION AND SOCIAL SERVICES,OYSTER BUS AUTOTOP,20.00 ,Passenger railways,Travel - Air/Rail/Road,Not applicable
17/01/2015,HOUSING AND COMMUNITY SERVICES,MAILCHIMP,33.99 ,Misc business services,Miscellaneous Industrial/Commercial Supplies,Not applicable
17/01/2015,HOUSING AND COMMUNITY SERVICES,OYSTER AUTOTOPUP,20.00 ,Passenger railways,Travel - Air/Rail/Road,Not applicable
17/01/2015,HOUSING AND COMMUNITY SERVICES,OYSTER AUTOTOPUP,20.00 ,Passenger railways,Travel - Air/Rail/Road,Not applicable
17/01/2015,HOUSING AND COMMUNITY SERVICES,OYSTER AUTOTOPUP,20.00 ,Passenger railways,Travel - Air/Rail/Road,Not applicable
17/01/2015,HOUSING AND COMMUNITY SERVICES,OYSTER BUS AUTOTOP,20.00 ,Passenger railways,Travel - Air/Rail/Road,Not applicable
17/01/2015,ADMINISTRATION,Amazon EU,13.99 ,Direct sales companies,Mail Order / Direct Selling,Not applicable
18/01/2015,EDUCATION AND SOCIAL SERVICES,OYSTER AUTOTOPUP,20.00 ,Passenger railways,Travel - Air/Rail/Road,Not applicable
18/01/2015,HOUSING AND COMMUNITY SERVICES,OYSTER BUS AUTOTOP,20.00 ,Passenger railways,Travel - Air/Rail/Road,Not applicable
18/01/2015,HOUSING AND COMMUNITY SERVICES,OYSTER BUS AUTOTOP,20.00 ,Passenger railways,Travel - Air/Rail/Road,Not applicable
18/01/2015,FINANCE,OYSTER BUS AUTOTOP,20.00 ,Passenger railways,Travel - Air/Rail/Road,Not applicable
19/01/2015,SCHOOLS,TESCO STORES 5999,57.28 ,Grocery stores,General Retail and Wholesale,Not applicable
19/01/2015,SCHOOLS,WWW.PLANTPOTSDIRECT.CO,31.50 ,Lawn & garden supply/nursery,Estate and Garden Services,Not applicable
19/01/2015,SCHOOLS,ZIPCAR,21.26 ,Transportation services,Travel - Air/Rail/Road,Not applicable
19/01/2015,EDUCATION AND SOCIAL SERVICES,TRAVELODGE WEBSITE,41.00 ,Travelodge,Hotels and Accommodation,Not applicable
19/01/2015,EDUCATION AND SOCIAL SERVICES,ASDA HOME SHOPPING,45.33 ,Grocery stores,General Retail and Wholesale,Not applicable
19/01/2015,ADMINISTRATION,Amazon  Mktplce EU-UK,18.20 ,Book stores,Books and Periodicals,Not applicable
19/01/2015,SCHOOLS,Amazon  Mktplce EU-UK,14.98 ,Book stores,Books and Periodicals,Not applicable
19/01/2015,SCHOOLS,WWW.HARPERCOLLINS.CO.U,125.95 ,Book stores,Books and Periodicals,Not applicable
20/01/2015,EDUCATION AND SOCIAL SERVICES,ARGOS DIRECT,-3.95 ,Catalogue sales,Mail Order / Direct Selling,Not applicable
20/01/2015,EDUCATION AND SOCIAL SERVICES,ARGOS RETAIL GROUP,568.92 ,Discount stores,General Retail and Wholesale,Not applicable
20/01/2015,HOUSING AND COMMUNITY SERVICES,OYSTER BUS AUTOTOP,20.00 ,Passenger railways,Travel - Air/Rail/Road,Not applicable
20/01/2015,ADMINISTRATION,GTR WEB RAIL SALES,81.00 ,Passenger railways,Travel - Air/Rail/Road,Not applicable
20/01/2015,EDUCATION AND SOCIAL SERVICES,STADSHOTELLET KRISTIANSTA,401.43 ,"Hotels, motels & resorts",Hotels and Accommodation,Not applicable
20/01/2015,SCHOOLS,Amazon  Mktplce EU-UK,20.05 ,Book stores,Books and Periodicals,Not applicable
21/01/2015,SCHOOLS,ITUNES.COM/BILL,-54.63 ,Record shops,General Retail and Wholesale,Not applicable
21/01/2015,SCHOOLS,ITUNES.COM/BILL,-72.97 ,Record shops,General Retail and Wholesale,Not applicable
21/01/2015,SCHOOLS,ITUNES.COM/BILL,-54.63 ,Record shops,General Retail and Wholesale,Not applicable
21/01/2015,SCHOOLS,WWW.UK.INSIGHT.COM,37.18 ,Catalogue sales,Mail Order / Direct Selling,Not applicable
21/01/2015,EDUCATION AND SOCIAL SERVICES,OYSTER RENEW WEB,-10.00 ,Passenger railways,Travel - Air/Rail/Road,Not applicable
21/01/2015,HOUSING AND COMMUNITY SERVICES,OYSTER AUTOTOPUP,20.00 ,Passenger railways,Travel - Air/Rail/Road,Not applicable
21/01/2015,HOUSING AND COMMUNITY SERVICES,OYSTER BUS AUTOTOP,20.00 ,Passenger railways,Travel - Air/Rail/Road,Not applicable
21/01/2015,FINANCE,OYSTER AUTOTOPUP,20.00 ,Passenger railways,Travel - Air/Rail/Road,Not applicable
21/01/2015,ADMINISTRATION,FINANCIAL TIMES LT,202.28 ,Catalogue & retail shops,General Retail and Wholesale,Not applicable
21/01/2015,SCHOOLS,Amazon  Mktplce EU-UK,38.94 ,Book stores,Books and Periodicals,Not applicable
22/01/2015,EDUCATION AND SOCIAL SERVICES,OYSTER BUS AUTOTOP,20.00 ,Passenger railways,Travel - Air/Rail/Road,Not applicable
22/01/2015,EDUCATION AND SOCIAL SERVICES,THE TRAINLINE.CO,10.30 ,Passenger railways,Travel - Air/Rail/Road,Not applicable
22/01/2015,EDUCATION AND SOCIAL SERVICES,THE TRAINLINE.CO,12.00 ,Passenger railways,Travel - Air/Rail/Road,Not applicable
22/01/2015,EDUCATION AND SOCIAL SERVICES,THE TRAINLINE.CO,12.00 ,Passenger railways,Travel - Air/Rail/Road,Not applicable
22/01/2015,EDUCATION AND SOCIAL SERVICES,THE TRAINLINE.CO,82.20 ,Passenger railways,Travel - Air/Rail/Road,Not applicable
22/01/2015,EDUCATION AND SOCIAL SERVICES,MITCHAM BELLE COAC,717.50 ,Taxicabs & limousines,Travel - Air/Rail/Road,Not applicable
22/01/2015,EDUCATION AND SOCIAL SERVICES,WWW.CAMPBEAUMONT.CO.UK,93.02 ,Travel agencies,Travel - Air/Rail/Road,Not applicable
22/01/2015,HOUSING AND COMMUNITY SERVICES,OYSTER BUS AUTOTOP,20.00 ,Passenger railways,Travel - Air/Rail/Road,Not applicable
22/01/2015,HOUSING AND COMMUNITY SERVICES,OYSTER BUS AUTOTOP,20.00 ,Passenger railways,Travel - Air/Rail/Road,Not applicable
22/01/2015,HOUSING AND COMMUNITY SERVICES,TFL CC/LEZ CHARGE,11.50 ,Toll and bridge fees,Travel - Air/Rail/Road,Not applicable
22/01/2015,HOUSING AND COMMUNITY SERVICES,TRAVELODGE WEBSITE,74.95 ,Emergency Accommodation,Hotels and Accommodation,Not applicable
22/01/2015,EDUCATION AND SOCIAL SERVICES,BUDGETAIR VIA SKYSCANN,184.04 ,Travel agencies,Travel - Air/Rail/Road,Not applicable
22/01/2015,EDUCATION AND SOCIAL SERVICES,EASYJET     000ENN4BQB,76.01 ,Easyjet,Travel - Air/Rail/Road,Not applicable
22/01/2015,EDUCATION AND SOCIAL SERVICES,OPODO ID,165.44 ,Travel agencies,Travel - Air/Rail/Road,Not applicable
22/01/2015,EDUCATION AND SOCIAL SERVICES,TRAINLINE.COM,116.69 ,Passenger railways,Travel - Air/Rail/Road,Not applicable
22/01/2015,EDUCATION AND SOCIAL SERVICES,TRAINLINE.COM,101.85 ,Passenger railways,Travel - Air/Rail/Road,Not applicable
22/01/2015,EDUCATION AND SOCIAL SERVICES,TRAINLINE.COM,43.35 ,Passenger railways,Travel - Air/Rail/Road,Not applicable
22/01/2015,EDUCATION AND SOCIAL SERVICES,WWW.RAILEUROPE.CO.UK,102.50 ,Passenger railways,Travel - Air/Rail/Road,Not applicable
22/01/2015,SCHOOLS,Amazon  Mktplce EU-UK,11.12 ,Book stores,Books and Periodicals,Not applicable
22/01/2015,SCHOOLS,Amazon  Mktplce EU-UK,73.60 ,Book stores,Books and Periodicals,Not applicable
23/01/2015,SCHOOLS,WWW.UK.INSIGHT.COM,5.99 ,Catalogue sales,Mail Order / Direct Selling,Not applicable
23/01/2015,EDUCATION AND SOCIAL SERVICES,OYSTER BUS AUTOTOP,20.00 ,Passenger railways,Travel - Air/Rail/Road,Not applicable
23/01/2015,EDUCATION AND SOCIAL SERVICES,MITCHAM BELLE COAC,51.25 ,Taxicabs & limousines,Travel - Air/Rail/Road,Not applicable
23/01/2015,HOUSING AND COMMUNITY SERVICES,LB CROYDON,130.00 ,Government services,Statutory Bodies,Not applicable
23/01/2015,HOUSING AND COMMUNITY SERVICES,OYSTER AUTOTOPUP,20.00 ,Passenger railways,Travel - Air/Rail/Road,Not applicable
23/01/2015,HOUSING AND COMMUNITY SERVICES,OYSTER AUTOTOPUP,20.00 ,Passenger railways,Travel - Air/Rail/Road,Not applicable
23/01/2015,HOUSING AND COMMUNITY SERVICES,WWW.WANDSWORTH.GOV.UK,60.00 ,Government services,Statutory Bodies,Not applicable
23/01/2015,FINANCE,OYSTER AUTOTOPUP,20.00 ,Passenger railways,Travel - Air/Rail/Road,Not applicable
23/01/2015,SCHOOLS,INTERFLORA BRITISH UNI,29.48 ,Florists,Estate and Garden Services,Not applicable
23/01/2015,SCHOOLS,INTERFLORA BRITISH UNI,34.18 ,Florists,Estate and Garden Services,Not applicable
23/01/2015,SCHOOLS,INTERFLORA BRITISH UNI,34.18 ,Florists,Estate and Garden Services,Not applicable
23/01/2015,SCHOOLS,INTERFLORA BRITISH UNI,34.18 ,Florists,Estate and Garden Services,Not applicable
23/01/2015,SCHOOLS,INTERFLORA BRITISH UNI,34.18 ,Florists,Estate and Garden Services,Not applicable
23/01/2015,SCHOOLS,STRAUSS DIRECT LTD,82.73 ,Timber & building supplies,Building Materials,Not applicable
23/01/2015,ADMINISTRATION,WWW.BRUNELENGRAVING.CO,13.80 ,Miscellaneous retail,General Retail and Wholesale,Not applicable
23/01/2015,ADMINISTRATION,CIEH,99.00 ,Membership organisations,Clubs/Associations/Organisations,Not applicable
23/01/2015,EDUCATION AND SOCIAL SERVICES,EASYJET     000ENN8PX1,62.21 ,Easyjet,Travel - Air/Rail/Road,Not applicable
23/01/2015,EDUCATION AND SOCIAL SERVICES,OPODO ID,61.51 ,Travel agencies,Travel - Air/Rail/Road,Not applicable
23/01/2015,EDUCATION AND SOCIAL SERVICES,STADSHOTELLET KRISTIANSTA,199.50 ,"Hotels, motels & resorts",Hotels and Accommodation,Not applicable
23/01/2015,EDUCATION AND SOCIAL SERVICES,WWW.RAILEUROPE.CO.UK,49.46 ,Passenger railways,Travel - Air/Rail/Road,Not applicable
23/01/2015,SCHOOLS,Amazon EU,9.74 ,Direct sales companies,Mail Order / Direct Selling,Not applicable
23/01/2015,SCHOOLS,WWW.HARPERCOLLINS.CO.U,95.95 ,Book stores,Books and Periodicals,Not applicable
24/01/2015,EDUCATION AND SOCIAL SERVICES,OYSTER AUTOTOPUP,20.00 ,Passenger railways,Travel - Air/Rail/Road,Not applicable
24/01/2015,EDUCATION AND SOCIAL SERVICES,OYSTER AUTOTOPUP,20.00 ,Passenger railways,Travel - Air/Rail/Road,Not applicable
25/01/2015,EDUCATION AND SOCIAL SERVICES,OYSTER BUS AUTOTOP,20.00 ,Passenger railways,Travel - Air/Rail/Road,Not applicable
25/01/2015,HOUSING AND COMMUNITY SERVICES,OYSTER AUTOTOPUP,20.00 ,Passenger railways,Travel - Air/Rail/Road,Not applicable
25/01/2015,HOUSING AND COMMUNITY SERVICES,OYSTER AUTOTOPUP,20.00 ,Passenger railways,Travel - Air/Rail/Road,Not applicable
25/01/2015,HOUSING AND COMMUNITY SERVICES,OYSTER AUTOTOPUP,20.00 ,Passenger railways,Travel - Air/Rail/Road,Not applicable
25/01/2015,HOUSING AND COMMUNITY SERVICES,OYSTER AUTOTOPUP,20.00 ,Passenger railways,Travel - Air/Rail/Road,Not applicable
25/01/2015,HOUSING AND COMMUNITY SERVICES,OYSTER BUS AUTOTOP,20.00 ,Passenger railways,Travel - Air/Rail/Road,Not applicable
25/01/2015,HOUSING AND COMMUNITY SERVICES,OYSTER BUS AUTOTOP,20.00 ,Passenger railways,Travel - Air/Rail/Road,Not applicable
26/01/2015,SCHOOLS,PAYPAL  NEWTONPREP,100.00 ,Primary & secondary school,Training and Educational,Not applicable
26/01/2015,EDUCATION AND SOCIAL SERVICES,ASDA HOME SHOPPING,49.03 ,Grocery stores,General Retail and Wholesale,Not applicable
26/01/2015,ADMINISTRATION,CONGESTION CHARGE,21.00 ,Toll and bridge fees,Travel - Air/Rail/Road,Not applicable
26/01/2015,ADMINISTRATION,TESCO STORE 3235,67.60 ,Grocery stores,General Retail and Wholesale,Not applicable
26/01/2015,SCHOOLS,Amazon UK Retail,79.84 ,Direct sales companies,Mail Order / Direct Selling,Not applicable
27/01/2015,HOUSING AND COMMUNITY SERVICES,TRAVELODGE WEBSITE,134.90 ,Emergency Accommodation,Hotels and Accommodation,Not applicable
27/01/2015,ADMINISTRATION,WAITROSE 673,4.59 ,Grocery stores,General Retail and Wholesale,Not applicable
27/01/2015,ADMINISTRATION,CIEH,99.00 ,Membership organisations,Clubs/Associations/Organisations,Not applicable
27/01/2015,SCHOOLS,Amazon UK Retail,4.99 ,Direct sales companies,Mail Order / Direct Selling,Not applicable
27/01/2015,SCHOOLS,CAPPAGH PUBLIC WORKS L,252.00 ,Truck & trailer rentals,Auto Rental,Not applicable
28/01/2015,EDUCATION AND SOCIAL SERVICES,THE TRAINLINE.CO,33.40 ,Passenger railways,Travel - Air/Rail/Road,Not applicable
28/01/2015,HOUSING AND COMMUNITY SERVICES,TFL CC/LEZ CHARGE,14.00 ,Toll and bridge fees,Travel - Air/Rail/Road,Not applicable
28/01/2015,HOUSING AND COMMUNITY SERVICES,TFL CC/LEZ CHARGE,14.00 ,Toll and bridge fees,Travel - Air/Rail/Road,Not applicable
28/01/2015,HOUSING AND COMMUNITY SERVICES,TRAVELODGE WEBSITE,74.95 ,Emergency Accommodation,Hotels and Accommodation,Not applicable
28/01/2015,EDUCATION AND SOCIAL SERVICES,TRAINLINE.COM,21.88 ,Passenger railways,Travel - Air/Rail/Road,Not applicable
28/01/2015,SCHOOLS,HOMEBASE.CO.UK,243.93 ,Furniture & home furnishing,General Retail and Wholesale,Not applicable
29/01/2015,HOUSING AND COMMUNITY SERVICES,TRAVELODGE WEBSITE,49.40 ,Emergency Accommodation,Hotels and Accommodation,Not applicable
29/01/2015,HOUSING AND COMMUNITY SERVICES,TRAVELODGE WEBSITE,49.40 ,Emergency Accommodation,Hotels and Accommodation,Not applicable
29/01/2015,HOUSING AND COMMUNITY SERVICES,TRAVELODGE WEBSITE,49.40 ,Emergency Accommodation,Hotels and Accommodation,Not applicable
29/01/2015,HOUSING AND COMMUNITY SERVICES,TRAVELODGE WEBSITE,49.40 ,Emergency Accommodation,Hotels and Accommodation,Not applicable
29/01/2015,HOUSING AND COMMUNITY SERVICES,TRAVELODGE WEBSITE,100.68 ,Emergency Accommodation,Hotels and Accommodation,Not applicable
29/01/2015,HOUSING AND COMMUNITY SERVICES,TRAVELODGE WEBSITE,98.80 ,Emergency Accommodation,Hotels and Accommodation,Not applicable
29/01/2015,HOUSING AND COMMUNITY SERVICES,TRAVELODGE WEBSITE,50.34 ,Emergency Accommodation,Hotels and Accommodation,Not applicable
29/01/2015,HOUSING AND COMMUNITY SERVICES,OYSTER AUTOTOPUP,20.00 ,Passenger railways,Travel - Air/Rail/Road,Not applicable
29/01/2015,ADMINISTRATION,SAINSBURY'S S/MKT,83.05 ,Grocery stores,General Retail and Wholesale,Not applicable
30/01/2015,EDUCATION AND SOCIAL SERVICES,ASDA HOME SHOPPING,95.91 ,Grocery stores,General Retail and Wholesale,Not applicable
30/01/2015,HOUSING AND COMMUNITY SERVICES,TRAVELODGE WEBSITE,151.05 ,Emergency Accommodation,Hotels and Accommodation,Not applicable
30/01/2015,HOUSING AND COMMUNITY SERVICES,TRAVELODGE WEBSITE,139.64 ,Emergency Accommodation,Hotels and Accommodation,Not applicable
30/01/2015,HOUSING AND COMMUNITY SERVICES,TRAVELODGE WEBSITE,139.64 ,Emergency Accommodation,Hotels and Accommodation,Not applicable
30/01/2015,HOUSING AND COMMUNITY SERVICES,TRAVELODGE WEBSITE,211.85 ,Emergency Accommodation,Hotels and Accommodation,Not applicable
30/01/2015,HOUSING AND COMMUNITY SERVICES,TRAVELODGE WEBSITE,139.64 ,Emergency Accommodation,Hotels and Accommodation,Not applicable
30/01/2015,HOUSING AND COMMUNITY SERVICES,TRAVELODGE WEBSITE,139.64 ,Emergency Accommodation,Hotels and Accommodation,Not applicable
30/01/2015,HOUSING AND COMMUNITY SERVICES,TRAVELODGE WEBSITE,139.64 ,Emergency Accommodation,Hotels and Accommodation,Not applicable
30/01/2015,HOUSING AND COMMUNITY SERVICES,TRAVELODGE WEBSITE,176.70 ,Emergency Accommodation,Hotels and Accommodation,Not applicable
30/01/2015,HOUSING AND COMMUNITY SERVICES,OYSTER AUTOTOPUP,20.00 ,Passenger railways,Travel - Air/Rail/Road,Not applicable
30/01/2015,HOUSING AND COMMUNITY SERVICES,OYSTER AUTOTOPUP,20.00 ,Passenger railways,Travel - Air/Rail/Road,Not applicable
30/01/2015,ADMINISTRATION,GTR WEB RAIL SALES,100.00 ,Passenger railways,Travel - Air/Rail/Road,Not applicable
31/01/2015,EDUCATION AND SOCIAL SERVICES,OYSTER AUTOTOPUP,20.00 ,Passenger railways,Travel - Air/Rail/Road,Not applicable
31/01/2015,HOUSING AND COMMUNITY SERVICES,OYSTER BUS AUTOTOP,20.00 ,Passenger railways,Travel - Air/Rail/Road,Not applicable
31/01/2015,HOUSING AND COMMUNITY SERVICES,OYSTER BUS AUTOTOP,20.00 ,Passenger railways,Travel - Air/Rail/Road,Not applicable
31/01/2015,HOUSING AND COMMUNITY SERVICES,OYSTER BUS AUTOTOP,20.00 ,Passenger railways,Travel - Air/Rail/Road,Not applicable
31/01/2015,FINANCE,OYSTER BUS AUTOTOP,20.00 ,Passenger railways,Travel - Air/Rail/Road,Not applicable
31/01/2015,ADMINISTRATION,SAINSBURY'S S/MKT,127.68 ,Grocery stores,General Retail and Wholesale,Not applicable
01/02/2015,EDUCATION AND SOCIAL SERVICES,OYSTER BUS AUTOTOP,20.00 ,Passenger railways,Travel - Air/Rail/Road,Not applicable
01/02/2015,HOUSING AND COMMUNITY SERVICES,OYSTER AUTOTOPUP,20.00 ,Passenger railways,Travel - Air/Rail/Road,Not applicable
02/02/2015,EDUCATION AND SOCIAL SERVICES,THE TRAINLINE.CO,44.50 ,Passenger railways,Travel - Air/Rail/Road,Not applicable
02/02/2015,EDUCATION AND SOCIAL SERVICES,THE TRAINLINE.CO,34.70 ,Passenger railways,Travel - Air/Rail/Road,Not applicable
02/02/2015,EDUCATION AND SOCIAL SERVICES,THE TRAINLINE.CO,146.00 ,Passenger railways,Travel - Air/Rail/Road,Not applicable
02/02/2015,EDUCATION AND SOCIAL SERVICES,ASDA HOME SHOPPING,63.18 ,Grocery stores,General Retail and Wholesale,Not applicable
02/02/2015,HOUSING AND COMMUNITY SERVICES,TRAVELODGE WEBSITE,53.20 ,Emergency Accommodation,Hotels and Accommodation,Not applicable
02/02/2015,HOUSING AND COMMUNITY SERVICES,TRAVELODGE WEBSITE,49.40 ,Emergency Accommodation,Hotels and Accommodation,Not applicable
02/02/2015,HOUSING AND COMMUNITY SERVICES,TRAVELODGE WEBSITE,53.20 ,Emergency Accommodation,Hotels and Accommodation,Not applicable
02/02/2015,HOUSING AND COMMUNITY SERVICES,TRAVELODGE WEBSITE,50.34 ,Emergency Accommodation,Hotels and Accommodation,Not applicable
02/02/2015,HOUSING AND COMMUNITY SERVICES,TRAVELODGE WEBSITE,53.20 ,Emergency Accommodation,Hotels and Accommodation,Not applicable
02/02/2015,HOUSING AND COMMUNITY SERVICES,TRAVELODGE WEBSITE,53.20 ,Emergency Accommodation,Hotels and Accommodation,Not applicable
02/02/2015,HOUSING AND COMMUNITY SERVICES,TRAVELODGE WEBSITE,50.34 ,Emergency Accommodation,Hotels and Accommodation,Not applicable
02/02/2015,HOUSING AND COMMUNITY SERVICES,TRAVELODGE WEBSITE,71.25 ,Emergency Accommodation,Hotels and Accommodation,Not applicable
02/02/2015,HOUSING AND COMMUNITY SERVICES,TRAVELODGE WEBSITE,53.20 ,Emergency Accommodation,Hotels and Accommodation,Not applicable
02/02/2015,HOUSING AND COMMUNITY SERVICES,TRAVELODGE WEBSITE,53.20 ,Emergency Accommodation,Hotels and Accommodation,Not applicable
02/02/2015,HOUSING AND COMMUNITY SERVICES,TRAVELODGE WEBSITE,53.20 ,Emergency Accommodation,Hotels and Accommodation,Not applicable
02/02/2015,HOUSING AND COMMUNITY SERVICES,WWW.DVLA.GOV.UK,222.50 ,Government services,Statutory Bodies,Not applicable
02/02/2015,HOUSING AND COMMUNITY SERVICES,WWW.DVLA.GOV.UK,227.50 ,Government services,Statutory Bodies,Not applicable
02/02/2015,HOUSING AND COMMUNITY SERVICES,WWW.DVLA.GOV.UK,227.50 ,Government services,Statutory Bodies,Not applicable
02/02/2015,HOUSING AND COMMUNITY SERVICES,WWW.DVLA.GOV.UK,227.50 ,Government services,Statutory Bodies,Not applicable
02/02/2015,HOUSING AND COMMUNITY SERVICES,WWW.DVLA.GOV.UK,227.50 ,Government services,Statutory Bodies,Not applicable
02/02/2015,HOUSING AND COMMUNITY SERVICES,WWW.DVLA.GOV.UK,147.50 ,Government services,Statutory Bodies,Not applicable
02/02/2015,HOUSING AND COMMUNITY SERVICES,WWW.DVLA.GOV.UK,227.50 ,Government services,Statutory Bodies,Not applicable
02/02/2015,HOUSING AND COMMUNITY SERVICES,WWW.DVLA.GOV.UK,227.50 ,Government services,Statutory Bodies,Not applicable
02/02/2015,HOUSING AND COMMUNITY SERVICES,WWW.DVLA.GOV.UK,227.50 ,Government services,Statutory Bodies,Not applicable
02/02/2015,SCHOOLS,LONDON MIDLAND INT,6.10 ,Passenger railways,Travel - Air/Rail/Road,Not applicable
02/02/2015,SCHOOLS,LONDON MIDLAND INT,12.00 ,Passenger railways,Travel - Air/Rail/Road,Not applicable
02/02/2015,SCHOOLS,VIRGINTRAINS.CO.UK,73.50 ,Passenger railways,Travel - Air/Rail/Road,Not applicable
02/02/2015,ADMINISTRATION,GASP,126.30 ,Schools,Training and Educational,Not applicable
03/02/2015,SCHOOLS,TESCO STORES 5999,74.68 ,Grocery stores,General Retail and Wholesale,Not applicable
03/02/2015,EDUCATION AND SOCIAL SERVICES,GTR WEB RAIL SALES,9.60 ,Passenger railways,Travel - Air/Rail/Road,Not applicable
03/02/2015,EDUCATION AND SOCIAL SERVICES,VIRGINTRAINS.CO.UK,68.50 ,Passenger railways,Travel - Air/Rail/Road,Not applicable
03/02/2015,HOUSING AND COMMUNITY SERVICES,TRAVELODGE WEBSITE,51.30 ,Emergency Accommodation,Hotels and Accommodation,Not applicable
03/02/2015,HOUSING AND COMMUNITY SERVICES,TRAVELODGE WEBSITE,73.15 ,Emergency Accommodation,Hotels and Accommodation,Not applicable
03/02/2015,HOUSING AND COMMUNITY SERVICES,TRAVELODGE WEBSITE,68.40 ,Emergency Accommodation,Hotels and Accommodation,Not applicable
03/02/2015,HOUSING AND COMMUNITY SERVICES,OYSTER AUTOTOPUP,20.00 ,Passenger railways,Travel - Air/Rail/Road,Not applicable
03/02/2015,HOUSING AND COMMUNITY SERVICES,OYSTER BUS AUTOTOP,20.00 ,Passenger railways,Travel - Air/Rail/Road,Not applicable
04/02/2015,EDUCATION AND SOCIAL SERVICES,OYSTER BUS AUTOTOP,20.00 ,Passenger railways,Travel - Air/Rail/Road,Not applicable
04/02/2015,EDUCATION AND SOCIAL SERVICES,HIE GLOUCESTER SOUTH,44.99 ,Holiday Inn,Hotels and Accommodation,Not applicable
04/02/2015,HOUSING AND COMMUNITY SERVICES,OYSTER AUTOTOPUP,20.00 ,Passenger railways,Travel - Air/Rail/Road,Not applicable
04/02/2015,HOUSING AND COMMUNITY SERVICES,OYSTER BUS AUTOTOP,20.00 ,Passenger railways,Travel - Air/Rail/Road,Not applicable
04/02/2015,HOUSING AND COMMUNITY SERVICES,OYSTER BUS AUTOTOP,20.00 ,Passenger railways,Travel - Air/Rail/Road,Not applicable
04/02/2015,HOUSING AND COMMUNITY SERVICES,OYSTER ISSUE WEB,15.00 ,Passenger railways,Travel - Air/Rail/Road,Not applicable
04/02/2015,HOUSING AND COMMUNITY SERVICES,OYSTER ISSUE WEB,15.00 ,Passenger railways,Travel - Air/Rail/Road,Not applicable
04/02/2015,SCHOOLS,JANSEN DISPLAY LTD,35.10 ,Misc commercial machines equipment,Miscellaneous Industrial/Commercial Supplies,Not applicable
04/02/2015,SCHOOLS,POLYBAGS LTD,38.36 ,Misc Durable goods,Miscellaneous Industrial/Commercial Supplies,Not applicable
05/02/2015,EDUCATION AND SOCIAL SERVICES,OYSTER AUTOTOPUP,20.00 ,Passenger railways,Travel - Air/Rail/Road,Not applicable
05/02/2015,EDUCATION AND SOCIAL SERVICES,HULL TRAINS WEBTIS,12.00 ,Passenger railways,Travel - Air/Rail/Road,Not applicable
05/02/2015,EDUCATION AND SOCIAL SERVICES,VIRGINTRAINS.CO.UK,91.00 ,Passenger railways,Travel - Air/Rail/Road,Not applicable
05/02/2015,HOUSING AND COMMUNITY SERVICES,TRAVELODGE WEBSITE,53.20 ,Emergency Accommodation,Hotels and Accommodation,Not applicable
05/02/2015,HOUSING AND COMMUNITY SERVICES,TRAVELODGE WEBSITE,53.20 ,Emergency Accommodation,Hotels and Accommodation,Not applicable
05/02/2015,HOUSING AND COMMUNITY SERVICES,TRAVELODGE WEBSITE,53.20 ,Emergency Accommodation,Hotels and Accommodation,Not applicable
05/02/2015,HOUSING AND COMMUNITY SERVICES,OYSTER AUTOTOPUP,20.00 ,Passenger railways,Travel - Air/Rail/Road,Not applicable
05/02/2015,HOUSING AND COMMUNITY SERVICES,OYSTER AUTOTOPUP,20.00 ,Passenger railways,Travel - Air/Rail/Road,Not applicable
05/02/2015,HOUSING AND COMMUNITY SERVICES,OYSTER AUTOTOPUP,20.00 ,Passenger railways,Travel - Air/Rail/Road,Not applicable
05/02/2015,HOUSING AND COMMUNITY SERVICES,OYSTER BUS AUTOTOP,20.00 ,Passenger railways,Travel - Air/Rail/Road,Not applicable
05/02/2015,HOUSING AND COMMUNITY SERVICES,OYSTER BUS AUTOTOP,20.00 ,Passenger railways,Travel - Air/Rail/Road,Not applicable
05/02/2015,FINANCE,OYSTER BUS AUTOTOP,20.00 ,Passenger railways,Travel - Air/Rail/Road,Not applicable
05/02/2015,EDUCATION AND SOCIAL SERVICES,TRAINLINE.COM,95.88 ,Passenger railways,Travel - Air/Rail/Road,Not applicable
06/02/2015,EDUCATION AND SOCIAL SERVICES,OYSTER AUTOTOPUP,20.00 ,Passenger railways,Travel - Air/Rail/Road,Not applicable
06/02/2015,EDUCATION AND SOCIAL SERVICES,SOUTHWESTTRAINS,263.00 ,Passenger railways,Travel - Air/Rail/Road,Not applicable
06/02/2015,EDUCATION AND SOCIAL SERVICES,SOUTHWESTTRAINS,31.20 ,Passenger railways,Travel - Air/Rail/Road,Not applicable
06/02/2015,EDUCATION AND SOCIAL SERVICES,SOUTHWESTTRAINS,36.00 ,Passenger railways,Travel - Air/Rail/Road,Not applicable
06/02/2015,EDUCATION AND SOCIAL SERVICES,SOUTHWESTTRAINS,31.20 ,Passenger railways,Travel - Air/Rail/Road,Not applicable
06/02/2015,EDUCATION AND SOCIAL SERVICES,MITCHAM BELLE COAC,358.75 ,Taxicabs & limousines,Travel - Air/Rail/Road,Not applicable
06/02/2015,EDUCATION AND SOCIAL SERVICES,HULL TRAINS WEBTIS,12.00 ,Passenger railways,Travel - Air/Rail/Road,Not applicable
06/02/2015,EDUCATION AND SOCIAL SERVICES,WEBTIS,46.50 ,Passenger railways,Travel - Air/Rail/Road,Not applicable
06/02/2015,HOUSING AND COMMUNITY SERVICES,OYSTER AUTOTOPUP,20.00 ,Passenger railways,Travel - Air/Rail/Road,Not applicable
06/02/2015,HOUSING AND COMMUNITY SERVICES,OYSTER AUTOTOPUP,20.00 ,Passenger railways,Travel - Air/Rail/Road,Not applicable
06/02/2015,HOUSING AND COMMUNITY SERVICES,OYSTER BUS AUTOTOP,20.00 ,Passenger railways,Travel - Air/Rail/Road,Not applicable
06/02/2015,HOUSING AND COMMUNITY SERVICES,TRAVELODGE WEBSITE,198.95 ,Emergency Accommodation,Hotels and Accommodation,Not applicable
06/02/2015,SCHOOLS,WWW.RPBOOKS.CO.UK,16.20 ,Catalogue & retail shops,General Retail and Wholesale,Not applicable
08/02/2015,EDUCATION AND SOCIAL SERVICES,OYSTER AUTOTOPUP,20.00 ,Passenger railways,Travel - Air/Rail/Road,Not applicable
08/02/2015,EDUCATION AND SOCIAL SERVICES,OYSTER BUS AUTOTOP,20.00 ,Passenger railways,Travel - Air/Rail/Road,Not applicable
08/02/2015,HOUSING AND COMMUNITY SERVICES,OYSTER AUTOTOPUP,20.00 ,Passenger railways,Travel - Air/Rail/Road,Not applicable
08/02/2015,HOUSING AND COMMUNITY SERVICES,OYSTER AUTOTOPUP,20.00 ,Passenger railways,Travel - Air/Rail/Road,Not applicable
08/02/2015,HOUSING AND COMMUNITY SERVICES,OYSTER BUS AUTOTOP,20.00 ,Passenger railways,Travel - Air/Rail/Road,Not applicable
08/02/2015,FINANCE,OYSTER BUS AUTOTOP,20.00 ,Passenger railways,Travel - Air/Rail/Road,Not applicable
09/02/2015,EDUCATION AND SOCIAL SERVICES,OYSTER AUTOTOPUP,20.00 ,Passenger railways,Travel - Air/Rail/Road,Not applicable
09/02/2015,EDUCATION AND SOCIAL SERVICES,ASDA HOME SHOPPING,43.59 ,Grocery stores,General Retail and Wholesale,Not applicable
09/02/2015,ADMINISTRATION,IMPERIAL COLLEGE FOM C,275.00 ,Colleges & universities,Training and Educational,Not applicable
09/02/2015,ADMINISTRATION,IMPERIAL COLLEGE FOM C,275.00 ,Colleges & universities,Training and Educational,Not applicable
10/02/2015,FINANCE,HMCOURTS-SERVICE.G,4272.00 ,Payment of Court Fees,Statutory Bodies,Not applicable
10/02/2015,EDUCATION AND SOCIAL SERVICES,OYSTER BUS AUTOTOP,20.00 ,Passenger railways,Travel - Air/Rail/Road,Not applicable
10/02/2015,EDUCATION AND SOCIAL SERVICES,CHELSEA F C,120.00 ,"Member clubs, sport, recreation & golf",Leisure Activities,Not applicable
10/02/2015,FINANCE,OYSTER BUS AUTOTOP,20.00 ,Passenger railways,Travel - Air/Rail/Road,Not applicable
10/02/2015,HOUSING AND COMMUNITY SERVICES,TRAVELODGE WEBSITE,-69.95 ,Emergency Accommodation,Hotels and Accommodation,Not applicable
10/02/2015,HOUSING AND COMMUNITY SERVICES,TRAVELODGE WEBSITE,71.95 ,Emergency Accommodation,Hotels and Accommodation,Not applicable
10/02/2015,HOUSING AND COMMUNITY SERVICES,TRAVELODGE WEBSITE,100.95 ,Emergency Accommodation,Hotels and Accommodation,Not applicable
10/02/2015,ADMINISTRATION,SAINSBURYS S/MKTS,14.59 ,Grocery stores,General Retail and Wholesale,Not applicable
10/02/2015,SCHOOLS,Amazon UK Retail,15.80 ,Direct sales companies,Mail Order / Direct Selling,Not applicable
10/02/2015,SCHOOLS,ASDA HOME SHOPPING,72.52 ,Grocery stores,General Retail and Wholesale,Not applicable
10/02/2015,SCHOOLS,ASDA HOME SHOPPING,-18.00 ,Grocery stores,General Retail and Wholesale,Not applicable
10/02/2015,SCHOOLS,ASDA HOME SHOPPING,17.42 ,Grocery stores,General Retail and Wholesale,Not applicable
11/02/2015,EDUCATION AND SOCIAL SERVICES,OYSTER AUTOTOPUP,20.00 ,Passenger railways,Travel - Air/Rail/Road,Not applicable
11/02/2015,EDUCATION AND SOCIAL SERVICES,OYSTER BUS AUTOTOP,20.00 ,Passenger railways,Travel - Air/Rail/Road,Not applicable
11/02/2015,EDUCATION AND SOCIAL SERVICES,SOUTHWESTTRAINS,41.00 ,Passenger railways,Travel - Air/Rail/Road,Not applicable
11/02/2015,EDUCATION AND SOCIAL SERVICES,SOUTHWESTTRAINS,8.90 ,Passenger railways,Travel - Air/Rail/Road,Not applicable
11/02/2015,EDUCATION AND SOCIAL SERVICES,SOUTHWESTTRAINS,12.00 ,Passenger railways,Travel - Air/Rail/Road,Not applicable
11/02/2015,EDUCATION AND SOCIAL SERVICES,SOUTHWESTTRAINS,57.60 ,Passenger railways,Travel - Air/Rail/Road,Not applicable
11/02/2015,EDUCATION AND SOCIAL SERVICES,SOUTHWESTTRAINS,12.00 ,Passenger railways,Travel - Air/Rail/Road,Not applicable
11/02/2015,HOUSING AND COMMUNITY SERVICES,THE LODGE HOTEL LONDON,123.00 ,"Hotels, motels & resorts",Hotels and Accommodation,Not applicable
12/02/2015,ADMINISTRATION,UKBA3679857912,184.00 ,Permission to work in the UK Cert from UK Border Agency,Statutory Bodies,Not applicable
12/02/2015,ADMINISTRATION,UKBA3679860393,184.00 ,Permission to work in the UK Cert from UK Border Agency,Statutory Bodies,Not applicable
12/02/2015,SCHOOLS,Amazon UK Retail,24.99 ,Direct sales companies,Mail Order / Direct Selling,Not applicable
12/02/2015,EDUCATION AND SOCIAL SERVICES,SOUTHWESTTRAINS,6.10 ,Passenger railways,Travel - Air/Rail/Road,Not applicable
12/02/2015,EDUCATION AND SOCIAL SERVICES,WWW.TENPIN.CO.UK,141.95 ,"Member clubs, sport, recreation & golf",Leisure Activities,Not applicable
12/02/2015,HOUSING AND COMMUNITY SERVICES,TRAVELODGE WEBSITE,53.20 ,Emergency Accommodation,Hotels and Accommodation,Not applicable
12/02/2015,HOUSING AND COMMUNITY SERVICES,TRAVELODGE WEBSITE,69.35 ,Emergency Accommodation,Hotels and Accommodation,Not applicable
12/02/2015,HOUSING AND COMMUNITY SERVICES,TRAVELODGE WEBSITE,53.20 ,Emergency Accommodation,Hotels and Accommodation,Not applicable
12/02/2015,HOUSING AND COMMUNITY SERVICES,TRAVELODGE WEBSITE,69.35 ,Emergency Accommodation,Hotels and Accommodation,Not applicable
12/02/2015,HOUSING AND COMMUNITY SERVICES,TRAVELODGE WEBSITE,53.20 ,Emergency Accommodation,Hotels and Accommodation,Not applicable
12/02/2015,HOUSING AND COMMUNITY SERVICES,OYSTER AUTOTOPUP,20.00 ,Passenger railways,Travel - Air/Rail/Road,Not applicable
12/02/2015,HOUSING AND COMMUNITY SERVICES,OYSTER BUS AUTOTOP,20.00 ,Passenger railways,Travel - Air/Rail/Road,Not applicable
12/02/2015,HOUSING AND COMMUNITY SERVICES,OYSTER BUS AUTOTOP,20.00 ,Passenger railways,Travel - Air/Rail/Road,Not applicable
12/02/2015,FINANCE,OYSTER BUS AUTOTOP,20.00 ,Passenger railways,Travel - Air/Rail/Road,Not applicable
12/02/2015,ADMINISTRATION,WWW.JOHNLEWIS.COM,299.00 ,Department stores,General Retail and Wholesale,Not applicable
12/02/2015,SCHOOLS,Amazon UK Retail,28.48 ,Direct sales companies,Mail Order / Direct Selling,Not applicable
12/02/2015,SCHOOLS,BOOKDEPOSITORY.COM,89.08 ,Book stores,Books and Periodicals,Not applicable
13/02/2015,SCHOOLS,"Amazon Svcs Europe,SAR",80.28 ,Book stores,Books and Periodicals,Not applicable
13/02/2015,SCHOOLS,PAYPAL  JOFF,24.00 ,Charitable organisations,Clubs/Associations/Organisations,Not applicable
13/02/2015,EDUCATION AND SOCIAL SERVICES,OYSTER AUTOTOPUP,20.00 ,Passenger railways,Travel - Air/Rail/Road,Not applicable
13/02/2015,EDUCATION AND SOCIAL SERVICES,NEWMONT TRAVEL LTD,1299.00 ,Travel agencies,Travel - Air/Rail/Road,Not applicable
13/02/2015,EDUCATION AND SOCIAL SERVICES,NEWMONT TRAVEL LTD,1299.00 ,Travel agencies,Travel - Air/Rail/Road,Not applicable
13/02/2015,EDUCATION AND SOCIAL SERVICES,NEWMONT TRAVEL LTD,1568.00 ,Travel agencies,Travel - Air/Rail/Road,Not applicable
13/02/2015,HOUSING AND COMMUNITY SERVICES,OYSTER AUTOTOPUP,20.00 ,Passenger railways,Travel - Air/Rail/Road,Not applicable
13/02/2015,HOUSING AND COMMUNITY SERVICES,OYSTER AUTOTOPUP,20.00 ,Passenger railways,Travel - Air/Rail/Road,Not applicable
13/02/2015,HOUSING AND COMMUNITY SERVICES,OYSTER BUS AUTOTOP,20.00 ,Passenger railways,Travel - Air/Rail/Road,Not applicable
13/02/2015,HOUSING AND COMMUNITY SERVICES,OYSTER BUS AUTOTOP,20.00 ,Passenger railways,Travel - Air/Rail/Road,Not applicable
13/02/2015,HOUSING AND COMMUNITY SERVICES,TFL CC/LEZ CHARGE,11.50 ,Toll and bridge fees,Travel - Air/Rail/Road,Not applicable
13/02/2015,HOUSING AND COMMUNITY SERVICES,TRAVELODGE WEBSITE,197.00 ,Emergency Accommodation,Hotels and Accommodation,Not applicable
13/02/2015,SCHOOLS,"Amazon Svcs Europe,SAR",44.08 ,Book stores,Books and Periodicals,Not applicable
13/02/2015,SCHOOLS,Amazon UK Retail,31.34 ,Direct sales companies,Mail Order / Direct Selling,Not applicable
14/02/2015,EDUCATION AND SOCIAL SERVICES,OYSTER AUTOTOPUP,20.00 ,Passenger railways,Travel - Air/Rail/Road,Not applicable
14/02/2015,EDUCATION AND SOCIAL SERVICES,OYSTER BUS AUTOTOP,20.00 ,Passenger railways,Travel - Air/Rail/Road,Not applicable
14/02/2015,FINANCE,OYSTER BUS AUTOTOP,20.00 ,Passenger railways,Travel - Air/Rail/Road,Not applicable
15/02/2015,FINANCE,OYSTER BUS AUTOTOP,20.00 ,Passenger railways,Travel - Air/Rail/Road,Not applicable
16/02/2015,SCHOOLS,TRADE UK,33.57 ,Timber & building supplies,Building Materials,Not applicable
16/02/2015,EDUCATION AND SOCIAL SERVICES,SOUTHWESTTRAINS,197.00 ,Passenger railways,Travel - Air/Rail/Road,Not applicable
16/02/2015,EDUCATION AND SOCIAL SERVICES,ASDA HOME SHOPPING,77.86 ,Grocery stores,General Retail and Wholesale,Not applicable
16/02/2015,HOUSING AND COMMUNITY SERVICES,TRAVELODGE WEBSITE,63.65 ,Emergency Accommodation,Hotels and Accommodation,Not applicable
16/02/2015,HOUSING AND COMMUNITY SERVICES,TRAVELODGE WEBSITE,63.65 ,Emergency Accommodation,Hotels and Accommodation,Not applicable
17/02/2015,HOUSING AND COMMUNITY SERVICES,MAILCHIMP,33.58 ,Misc business services,Miscellaneous Industrial/Commercial Supplies,Not applicable
17/02/2015,FINANCE,OYSTER BUS AUTOSET,20.00 ,Passenger railways,Travel - Air/Rail/Road,Not applicable
17/02/2015,ADMINISTRATION,WAITROSE 673,25.83 ,Grocery stores,General Retail and Wholesale,Not applicable
17/02/2015,ADMINISTRATION,WWW.JOHNLEWIS.COM,99.99 ,Department stores,General Retail and Wholesale,Not applicable
18/02/2015,EDUCATION AND SOCIAL SERVICES,SOUTHWESTTRAINS,12.00 ,Passenger railways,Travel - Air/Rail/Road,Not applicable
18/02/2015,EDUCATION AND SOCIAL SERVICES,SOUTHWESTTRAINS,140.70 ,Passenger railways,Travel - Air/Rail/Road,Not applicable
18/02/2015,EDUCATION AND SOCIAL SERVICES,ASDA HOME SHOPPING,36.52 ,Grocery stores,General Retail and Wholesale,Not applicable
18/02/2015,HOUSING AND COMMUNITY SERVICES,OYSTER BUS AUTOTOP,20.00 ,Passenger railways,Travel - Air/Rail/Road,Not applicable
18/02/2015,HOUSING AND COMMUNITY SERVICES,OYSTER BUS AUTOTOP,20.00 ,Passenger railways,Travel - Air/Rail/Road,Not applicable
18/02/2015,HOUSING AND COMMUNITY SERVICES,OYSTER BUS AUTOTOP,20.00 ,Passenger railways,Travel - Air/Rail/Road,Not applicable
18/02/2015,HOUSING AND COMMUNITY SERVICES,OYSTER BUS AUTOTOP,20.00 ,Passenger railways,Travel - Air/Rail/Road,Not applicable
18/02/2015,FINANCE,Amazon UK Retail,34.97 ,Direct sales companies,Mail Order / Direct Selling,Not applicable
18/02/2015,FINANCE,OYSTER AUTOTOPUP,20.00 ,Passenger railways,Travel - Air/Rail/Road,Not applicable
18/02/2015,FINANCE,OYSTER BUS AUTOTOP,20.00 ,Passenger railways,Travel - Air/Rail/Road,Not applicable
18/02/2015,HOUSING AND COMMUNITY SERVICES,TRAVELODGE WEBSITE,85.95 ,Emergency Accommodation,Hotels and Accommodation,Not applicable
18/02/2015,HOUSING AND COMMUNITY SERVICES,TRAVELODGE WEBSITE,-83.95 ,Emergency Accommodation,Hotels and Accommodation,Not applicable
19/02/2015,EDUCATION AND SOCIAL SERVICES,VIRGINTRAINS.CO.UK,17.80 ,Passenger railways,Travel - Air/Rail/Road,Not applicable
19/02/2015,EDUCATION AND SOCIAL SERVICES,VIRGINTRAINS.CO.UK,18.80 ,Passenger railways,Travel - Air/Rail/Road,Not applicable
19/02/2015,EDUCATION AND SOCIAL SERVICES,VIRGINTRAINS.CO.UK,17.80 ,Passenger railways,Travel - Air/Rail/Road,Not applicable
19/02/2015,HOUSING AND COMMUNITY SERVICES,OYSTER AUTOTOPUP,20.00 ,Passenger railways,Travel - Air/Rail/Road,Not applicable
19/02/2015,HOUSING AND COMMUNITY SERVICES,OYSTER AUTOTOPUP,20.00 ,Passenger railways,Travel - Air/Rail/Road,Not applicable
19/02/2015,HOUSING AND COMMUNITY SERVICES,OYSTER AUTOTOPUP,20.00 ,Passenger railways,Travel - Air/Rail/Road,Not applicable
19/02/2015,HOUSING AND COMMUNITY SERVICES,OYSTER BUS AUTOTOP,20.00 ,Passenger railways,Travel - Air/Rail/Road,Not applicable
19/02/2015,HOUSING AND COMMUNITY SERVICES,OYSTER BUS AUTOTOP,20.00 ,Passenger railways,Travel - Air/Rail/Road,Not applicable
19/02/2015,ADMINISTRATION,"Amazon Svcs Europe,SAR",3.95 ,Book stores,Books and Periodicals,Not applicable
19/02/2015,ADMINISTRATION,GLOBAL GOLD NETWORK,12.00 ,Computer software stores,Computer Equipment & Services,Not applicable
20/02/2015,EDUCATION AND SOCIAL SERVICES,OYSTER BUS AUTOTOP,20.00 ,Passenger railways,Travel - Air/Rail/Road,Not applicable
20/02/2015,HOUSING AND COMMUNITY SERVICES,OYSTER AUTOTOPUP,20.00 ,Passenger railways,Travel - Air/Rail/Road,Not applicable
20/02/2015,HOUSING AND COMMUNITY SERVICES,OYSTER BUS AUTOTOP,20.00 ,Passenger railways,Travel - Air/Rail/Road,Not applicable
20/02/2015,HOUSING AND COMMUNITY SERVICES,OYSTER BUS AUTOTOP,20.00 ,Passenger railways,Travel - Air/Rail/Road,Not applicable
21/02/2015,HOUSING AND COMMUNITY SERVICES,OYSTER AUTOTOPUP,20.00 ,Passenger railways,Travel - Air/Rail/Road,Not applicable
21/02/2015,HOUSING AND COMMUNITY SERVICES,OYSTER AUTOTOPUP,20.00 ,Passenger railways,Travel - Air/Rail/Road,Not applicable
21/02/2015,HOUSING AND COMMUNITY SERVICES,OYSTER BUS AUTOTOP,20.00 ,Passenger railways,Travel - Air/Rail/Road,Not applicable
21/02/2015,FINANCE,OYSTER BUS AUTOTOP,20.00 ,Passenger railways,Travel - Air/Rail/Road,Not applicable
21/02/2015,FINANCE,OYSTER BUS AUTOTOP,20.00 ,Passenger railways,Travel - Air/Rail/Road,Not applicable
21/02/2015,FINANCE,OYSTER BUS AUTOTOP,20.00 ,Passenger railways,Travel - Air/Rail/Road,Not applicable
23/02/2015,EDUCATION AND SOCIAL SERVICES,OYSTER BUS AUTOTOP,20.00 ,Passenger railways,Travel - Air/Rail/Road,Not applicable
23/02/2015,SCHOOLS,BOOKDEPOSITORY.COM,108.63 ,Book stores,Books and Periodicals,Not applicable
24/02/2015,SCHOOLS,TESCO STORES 5999,62.07 ,Grocery stores,General Retail and Wholesale,Not applicable
24/02/2015,EDUCATION AND SOCIAL SERVICES,SOUTHWESTTRAINS,67.60 ,Passenger railways,Travel - Air/Rail/Road,Not applicable
24/02/2015,HOUSING AND COMMUNITY SERVICES,RFCA FOR GREATER LONDO,473.00 ,Membership organisations,Clubs/Associations/Organisations,Not applicable
24/02/2015,HOUSING AND COMMUNITY SERVICES,TRAVELODGE WEBSITE,129.20 ,Emergency Accommodation,Hotels and Accommodation,Not applicable
24/02/2015,HOUSING AND COMMUNITY SERVICES,TRAVELODGE WEBSITE,171.00 ,Emergency Accommodation,Hotels and Accommodation,Not applicable
24/02/2015,HOUSING AND COMMUNITY SERVICES,TRAVELODGE WEBSITE,71.25 ,Emergency Accommodation,Hotels and Accommodation,Not applicable
24/02/2015,HOUSING AND COMMUNITY SERVICES,TRAVELODGE WEBSITE,71.25 ,Emergency Accommodation,Hotels and Accommodation,Not applicable
24/02/2015,ADMINISTRATION,HIGH AND MIGHTY,28.00 ,Men & womens clothing shops,General Retail and Wholesale,Not applicable
24/02/2015,ADMINISTRATION,HIGH AND MIGHTY,28.00 ,Men & womens clothing shops,General Retail and Wholesale,Not applicable
24/02/2015,ADMINISTRATION,HIGH AND MIGHTY,80.00 ,Men & womens clothing shops,General Retail and Wholesale,Not applicable
24/02/2015,ADMINISTRATION,HIGH AND MIGHTY,-28.00 ,Men & womens clothing shops,General Retail and Wholesale,Not applicable
24/02/2015,ADMINISTRATION,HIGH AND MIGHTY,28.00 ,Men & womens clothing shops,General Retail and Wholesale,Not applicable
24/02/2015,ADMINISTRATION,HIGH AND MIGHTY,28.00 ,Men & womens clothing shops,General Retail and Wholesale,Not applicable
24/02/2015,ADMINISTRATION,HIGH AND MIGHTY,156.00 ,Men & womens clothing shops,General Retail and Wholesale,Not applicable
24/02/2015,ADMINISTRATION,HIGH AND MIGHTY,28.00 ,Men & womens clothing shops,General Retail and Wholesale,Not applicable
24/02/2015,ADMINISTRATION,GASP,474.20 ,Schools,Training and Educational,Not applicable
25/02/2015,EDUCATION AND SOCIAL SERVICES,OYSTER AUTOTOPUP,20.00 ,Passenger railways,Travel - Air/Rail/Road,Not applicable
25/02/2015,EDUCATION AND SOCIAL SERVICES,GREATERANGLIA.CO.UK,58.95 ,Passenger railways,Travel - Air/Rail/Road,Not applicable
25/02/2015,HOUSING AND COMMUNITY SERVICES,OYSTER BUS AUTOTOP,20.00 ,Passenger railways,Travel - Air/Rail/Road,Not applicable
25/02/2015,ADMINISTRATION,SAINSBURYS S/MKTS,26.08 ,Grocery stores,General Retail and Wholesale,Not applicable
25/02/2015,ADMINISTRATION,CURRYS ONLINE,149.99 ,Electronics shops,General Retail and Wholesale,Not applicable
25/02/2015,SCHOOLS,PAYPAL  CITIZENSHIP,140.00 ,Charitable organisations,Clubs/Associations/Organisations,Not applicable
26/02/2015,EDUCATION AND SOCIAL SERVICES,OYSTER BUS AUTOTOP,20.00 ,Passenger railways,Travel - Air/Rail/Road,Not applicable
26/02/2015,HOUSING AND COMMUNITY SERVICES,TRAVELODGE WEBSITE,185.25 ,Emergency Accommodation,Hotels and Accommodation,Not applicable
26/02/2015,HOUSING AND COMMUNITY SERVICES,OYSTER AUTOTOPUP,20.00 ,Passenger railways,Travel - Air/Rail/Road,Not applicable
26/02/2015,HOUSING AND COMMUNITY SERVICES,OYSTER AUTOTOPUP,20.00 ,Passenger railways,Travel - Air/Rail/Road,Not applicable
26/02/2015,ADMINISTRATION,CONGESTION CHARGE,10.50 ,Toll and bridge fees,Travel - Air/Rail/Road,Not applicable
26/02/2015,ADMINISTRATION,Amazon UK Retail,188.24 ,Direct sales companies,Mail Order / Direct Selling,Not applicable
26/02/2015,ADMINISTRATION,Amazon UK Retail,282.36 ,Direct sales companies,Mail Order / Direct Selling,Not applicable
27/02/2015,EDUCATION AND SOCIAL SERVICES,OYSTER BUS AUTOTOP,20.00 ,Passenger railways,Travel - Air/Rail/Road,Not applicable
27/02/2015,EDUCATION AND SOCIAL SERVICES,TRAINLINE.COM,123.93 ,Passenger railways,Travel - Air/Rail/Road,Not applicable
27/02/2015,EDUCATION AND SOCIAL SERVICES,ASDA HOME SHOPPING,80.07 ,Grocery stores,General Retail and Wholesale,Not applicable
27/02/2015,HOUSING AND COMMUNITY SERVICES,TRAVELODGE WEBSITE,53.20 ,Emergency Accommodation,Hotels and Accommodation,Not applicable
27/02/2015,HOUSING AND COMMUNITY SERVICES,TRAVELODGE WEBSITE,93.10 ,Emergency Accommodation,Hotels and Accommodation,Not applicable
27/02/2015,HOUSING AND COMMUNITY SERVICES,TRAVELODGE WEBSITE,93.10 ,Emergency Accommodation,Hotels and Accommodation,Not applicable
27/02/2015,HOUSING AND COMMUNITY SERVICES,TRAVELODGE WEBSITE,53.20 ,Emergency Accommodation,Hotels and Accommodation,Not applicable
27/02/2015,HOUSING AND COMMUNITY SERVICES,TRAVELODGE WEBSITE,53.20 ,Emergency Accommodation,Hotels and Accommodation,Not applicable
27/02/2015,HOUSING AND COMMUNITY SERVICES,TRAVELODGE WEBSITE,53.20 ,Emergency Accommodation,Hotels and Accommodation,Not applicable
27/02/2015,HOUSING AND COMMUNITY SERVICES,TRAVELODGE WEBSITE,166.25 ,Emergency Accommodation,Hotels and Accommodation,Not applicable
27/02/2015,HOUSING AND COMMUNITY SERVICES,TRAVELODGE WEBSITE,93.10 ,Emergency Accommodation,Hotels and Accommodation,Not applicable
27/02/2015,HOUSING AND COMMUNITY SERVICES,OYSTER AUTOTOPUP,20.00 ,Passenger railways,Travel - Air/Rail/Road,Not applicable
27/02/2015,HOUSING AND COMMUNITY SERVICES,OYSTER BUS AUTOTOP,20.00 ,Passenger railways,Travel - Air/Rail/Road,Not applicable
27/02/2015,FINANCE,OYSTER AUTOTOPUP,20.00 ,Passenger railways,Travel - Air/Rail/Road,Not applicable
27/02/2015,HOUSING AND COMMUNITY SERVICES,LONDON BOROUGH OF,65.00 ,Government services,Statutory Bodies,Not applicable
27/02/2015,ADMINISTRATION,"Amazon Svcs Europe,SAR",115.30 ,Book stores,Books and Periodicals,Not applicable
27/02/2015,ADMINISTRATION,"Amazon Svcs Europe,SAR",16.32 ,Book stores,Books and Periodicals,Not applicable
27/02/2015,ADMINISTRATION,"Amazon Svcs Europe,SAR",249.80 ,Book stores,Books and Periodicals,Not applicable
27/02/2015,ADMINISTRATION,Amazon UK Retail,48.88 ,Direct sales companies,Mail Order / Direct Selling,Not applicable
27/02/2015,SCHOOLS,HSE BOOKS (INTERNET),9.00 ,Government services,Statutory Bodies,Not applicable
28/02/2015,SCHOOLS,TESCO DELIVERY SAVER1,30.00 ,Grocery stores,General Retail and Wholesale,Not applicable
28/02/2015,HOUSING AND COMMUNITY SERVICES,OYSTER AUTOTOPUP,20.00 ,Passenger railways,Travel - Air/Rail/Road,Not applicable
28/02/2015,HOUSING AND COMMUNITY SERVICES,OYSTER BUS AUTOTOP,20.00 ,Passenger railways,Travel - Air/Rail/Road,Not applicable
28/02/2015,HOUSING AND COMMUNITY SERVICES,OYSTER BUS AUTOTOP,20.00 ,Passenger railways,Travel - Air/Rail/Road,Not applicable
28/02/2015,HOUSING AND COMMUNITY SERVICES,OYSTER BUS AUTOTOP,20.00 ,Passenger railways,Travel - Air/Rail/Road,Not applicable
28/02/2015,FINANCE,OYSTER AUTOTOPUP,20.00 ,Passenger railways,Travel - Air/Rail/Road,Not applicable
28/02/2015,ADMINISTRATION,TESCO STORE 3235,2.75 ,Grocery stores,General Retail and Wholesale,Not applicable
01/03/2015,HOUSING AND COMMUNITY SERVICES,OYSTER AUTOTOPUP,20.00 ,Passenger railways,Travel - Air/Rail/Road,Not applicable
01/03/2015,HOUSING AND COMMUNITY SERVICES,OYSTER AUTOTOPUP,20.00 ,Passenger railways,Travel - Air/Rail/Road,Not applicable
01/03/2015,FINANCE,OYSTER BUS AUTOTOP,20.00 ,Passenger railways,Travel - Air/Rail/Road,Not applicable
01/03/2015,HOUSING AND COMMUNITY SERVICES,TRAVELODGE WEBSITE,62.95 ,Emergency Accommodation,Hotels and Accommodation,Not applicable
02/03/2015,EDUCATION AND SOCIAL SERVICES,SOUTHWESTTRAINS,34.70 ,Passenger railways,Travel - Air/Rail/Road,Not applicable
02/03/2015,EDUCATION AND SOCIAL SERVICES,SOUTHWESTTRAINS,39.20 ,Passenger railways,Travel - Air/Rail/Road,Not applicable
02/03/2015,EDUCATION AND SOCIAL SERVICES,SOUTHWESTTRAINS,197.00 ,Passenger railways,Travel - Air/Rail/Road,Not applicable
02/03/2015,EDUCATION AND SOCIAL SERVICES,ASDA HOME SHOPPING,57.43 ,Grocery stores,General Retail and Wholesale,Not applicable
02/03/2015,EDUCATION AND SOCIAL SERVICES,WWW.TENPIN.CO.UK,74.45 ,"Member clubs, sport, recreation & golf",Leisure Activities,Not applicable
02/03/2015,HOUSING AND COMMUNITY SERVICES,TRAVELODGE WEBSITE,57.95 ,Emergency Accommodation,Hotels and Accommodation,Not applicable
02/03/2015,HOUSING AND COMMUNITY SERVICES,TRAVELODGE WEBSITE,57.95 ,Emergency Accommodation,Hotels and Accommodation,Not applicable
02/03/2015,HOUSING AND COMMUNITY SERVICES,TRAVELODGE WEBSITE,58.90 ,Emergency Accommodation,Hotels and Accommodation,Not applicable
02/03/2015,HOUSING AND COMMUNITY SERVICES,TRAVELODGE WEBSITE,57.95 ,Emergency Accommodation,Hotels and Accommodation,Not applicable
02/03/2015,FINANCE,REDACTIVE,510.00 ,Misc business services,Miscellaneous Industrial/Commercial Supplies,Not applicable
03/03/2015,HOUSING AND COMMUNITY SERVICES,TRAVELODGE WEBSITE,92.15 ,Emergency Accommodation,Hotels and Accommodation,Not applicable
03/03/2015,HOUSING AND COMMUNITY SERVICES,TRAVELODGE WEBSITE,73.15 ,Emergency Accommodation,Hotels and Accommodation,Not applicable
03/03/2015,HOUSING AND COMMUNITY SERVICES,TRAVELODGE WEBSITE,92.15 ,Emergency Accommodation,Hotels and Accommodation,Not applicable
03/03/2015,HOUSING AND COMMUNITY SERVICES,TRAVELODGE WEBSITE,63.65 ,Emergency Accommodation,Hotels and Accommodation,Not applicable
03/03/2015,HOUSING AND COMMUNITY SERVICES,TRAVELODGE WEBSITE,77.90 ,Emergency Accommodation,Hotels and Accommodation,Not applicable
03/03/2015,HOUSING AND COMMUNITY SERVICES,TRAVELODGE WEBSITE,77.90 ,Emergency Accommodation,Hotels and Accommodation,Not applicable
03/03/2015,HOUSING AND COMMUNITY SERVICES,TRAVELODGE WEBSITE,63.65 ,Emergency Accommodation,Hotels and Accommodation,Not applicable
03/03/2015,HOUSING AND COMMUNITY SERVICES,LONDON BOROUGH OF,65.00 ,Government services,Statutory Bodies,Not applicable
03/03/2015,HOUSING AND COMMUNITY SERVICES,WWW.LBHF.GOV.UK,65.00 ,Government services,Statutory Bodies,Not applicable
03/03/2015,HOUSING AND COMMUNITY SERVICES,WWW.LBHF.GOV.UK,65.00 ,Government services,Statutory Bodies,Not applicable
03/03/2015,ADMINISTRATION,HIGH AND MIGHTY,100.00 ,Men & womens clothing shops,General Retail and Wholesale,Not applicable
03/03/2015,ADMINISTRATION,SAINSBURY'S S/MKT,26.00 ,Grocery stores,General Retail and Wholesale,Not applicable
03/03/2015,ADMINISTRATION,"Amazon Svcs Europe,SAR",43.50 ,Book stores,Books and Periodicals,Not applicable
03/03/2015,ADMINISTRATION,"Amazon Svcs Europe,SAR",11.74 ,Book stores,Books and Periodicals,Not applicable
03/03/2015,EDUCATION AND SOCIAL SERVICES,EASYJET     ENT666V,61.74 ,Easyjet,Travel - Air/Rail/Road,Not applicable
03/03/2015,EDUCATION AND SOCIAL SERVICES,RYANAIR     22400000SH7JJ,85.03 ,Ryanair,Travel - Air/Rail/Road,Not applicable
03/03/2015,EDUCATION AND SOCIAL SERVICES,RYANAIR     22400000UHB3N,54.61 ,Ryanair,Travel - Air/Rail/Road,Not applicable
03/03/2015,EDUCATION AND SOCIAL SERVICES,RYANAIR     22400000WKR63,110.34 ,Ryanair,Travel - Air/Rail/Road,Not applicable
03/03/2015,SCHOOLS,BOOKDEPOSITORY.COM,-62.88 ,Book stores,Books and Periodicals,Not applicable
04/03/2015,EDUCATION AND SOCIAL SERVICES,PREMIER INN44523705,37.00 ,Premier Inn,Hotels and Accommodation,Not applicable
04/03/2015,EDUCATION AND SOCIAL SERVICES,PP TOWNCOUNTRY,133.56 ,Taxicabs & limousines,Travel - Air/Rail/Road,Not applicable
04/03/2015,HOUSING AND COMMUNITY SERVICES,TRAVELODGE WEBSITE,92.15 ,Emergency Accommodation,Hotels and Accommodation,Not applicable
04/03/2015,HOUSING AND COMMUNITY SERVICES,TRAVELODGE WEBSITE,56.05 ,Emergency Accommodation,Hotels and Accommodation,Not applicable
04/03/2015,HOUSING AND COMMUNITY SERVICES,TRAVELODGE WEBSITE,61.75 ,Emergency Accommodation,Hotels and Accommodation,Not applicable
04/03/2015,HOUSING AND COMMUNITY SERVICES,OYSTER AUTOTOPUP,20.00 ,Passenger railways,Travel - Air/Rail/Road,Not applicable
04/03/2015,HOUSING AND COMMUNITY SERVICES,OYSTER BUS AUTOTOP,20.00 ,Passenger railways,Travel - Air/Rail/Road,Not applicable
04/03/2015,HOUSING AND COMMUNITY SERVICES,OYSTER BUS AUTOTOP,20.00 ,Passenger railways,Travel - Air/Rail/Road,Not applicable
04/03/2015,ADMINISTRATION,HIGH AND MIGHTY,-80.00 ,Men & womens clothing shops,General Retail and Wholesale,Not applicable
04/03/2015,ADMINISTRATION,"Amazon Svcs Europe,SAR",80.05 ,Book stores,Books and Periodicals,Not applicable
04/03/2015,EDUCATION AND SOCIAL SERVICES,WWW.RAILEUROPE.CO.UK,11.53 ,Passenger railways,Travel - Air/Rail/Road,Not applicable
05/03/2015,SCHOOLS,TESCO STORES 5999,66.50 ,Grocery stores,General Retail and Wholesale,Not applicable
05/03/2015,EDUCATION AND SOCIAL SERVICES,P W R EVENTS LIMITED,-286.70 ,Theatres and ticket agencies,Leisure Activities,Not applicable
05/03/2015,HOUSING AND COMMUNITY SERVICES,TRAVELODGE WEBSITE,53.20 ,Emergency Accommodation,Hotels and Accommodation,Not applicable
05/03/2015,HOUSING AND COMMUNITY SERVICES,OYSTER AUTOTOPUP,20.00 ,Passenger railways,Travel - Air/Rail/Road,Not applicable
05/03/2015,HOUSING AND COMMUNITY SERVICES,OYSTER AUTOTOPUP,20.00 ,Passenger railways,Travel - Air/Rail/Road,Not applicable
05/03/2015,HOUSING AND COMMUNITY SERVICES,OYSTER AUTOTOPUP,20.00 ,Passenger railways,Travel - Air/Rail/Road,Not applicable
05/03/2015,HOUSING AND COMMUNITY SERVICES,OYSTER BUS AUTOTOP,20.00 ,Passenger railways,Travel - Air/Rail/Road,Not applicable
05/03/2015,FINANCE,OYSTER BUS AUTOTOP,20.00 ,Passenger railways,Travel - Air/Rail/Road,Not applicable
05/03/2015,ADMINISTRATION,ASDA SUPERSTORE,17.96 ,Grocery stores,General Retail and Wholesale,Not applicable
06/03/2015,EDUCATION AND SOCIAL SERVICES,OYSTER BUS AUTOTOP,20.00 ,Passenger railways,Travel - Air/Rail/Road,Not applicable
06/03/2015,EDUCATION AND SOCIAL SERVICES,LONDON MIDLAND INT,35.40 ,Passenger railways,Travel - Air/Rail/Road,Not applicable
06/03/2015,HOUSING AND COMMUNITY SERVICES,TRAVELODGE WEBSITE,176.70 ,Emergency Accommodation,Hotels and Accommodation,Not applicable
06/03/2015,HOUSING AND COMMUNITY SERVICES,TRAVELODGE WEBSITE,147.25 ,Emergency Accommodation,Hotels and Accommodation,Not applicable
06/03/2015,HOUSING AND COMMUNITY SERVICES,TRAVELODGE WEBSITE,176.70 ,Emergency Accommodation,Hotels and Accommodation,Not applicable
06/03/2015,HOUSING AND COMMUNITY SERVICES,OYSTER AUTOTOPUP,20.00 ,Passenger railways,Travel - Air/Rail/Road,Not applicable
06/03/2015,HOUSING AND COMMUNITY SERVICES,OYSTER BUS AUTOTOP,20.00 ,Passenger railways,Travel - Air/Rail/Road,Not applicable
06/03/2015,FINANCE,OYSTER AUTOTOPUP,20.00 ,Passenger railways,Travel - Air/Rail/Road,Not applicable
06/03/2015,HOUSING AND COMMUNITY SERVICES,TRAVELODGE WEBSITE,189.95 ,Emergency Accommodation,Hotels and Accommodation,Not applicable
06/03/2015,ADMINISTRATION,"Amazon Svcs Europe,SAR",27.80 ,Book stores,Books and Periodicals,Not applicable
07/03/2015,EDUCATION AND SOCIAL SERVICES,OYSTER BUS AUTOTOP,20.00 ,Passenger railways,Travel - Air/Rail/Road,Not applicable
07/03/2015,EDUCATION AND SOCIAL SERVICES,OYSTER BUS AUTOTOP,20.00 ,Passenger railways,Travel - Air/Rail/Road,Not applicable
07/03/2015,HOUSING AND COMMUNITY SERVICES,OYSTER AUTOTOPUP,20.00 ,Passenger railways,Travel - Air/Rail/Road,Not applicable
07/03/2015,HOUSING AND COMMUNITY SERVICES,OYSTER BUS AUTOTOP,20.00 ,Passenger railways,Travel - Air/Rail/Road,Not applicable
07/03/2015,HOUSING AND COMMUNITY SERVICES,OYSTER BUS AUTOTOP,20.00 ,Passenger railways,Travel - Air/Rail/Road,Not applicable
07/03/2015,HOUSING AND COMMUNITY SERVICES,OYSTER BUS AUTOTOP,20.00 ,Passenger railways,Travel - Air/Rail/Road,Not applicable
08/03/2015,HOUSING AND COMMUNITY SERVICES,OYSTER BUS AUTOTOP,20.00 ,Passenger railways,Travel - Air/Rail/Road,Not applicable
08/03/2015,HOUSING AND COMMUNITY SERVICES,OYSTER BUS AUTOTOP,20.00 ,Passenger railways,Travel - Air/Rail/Road,Not applicable
08/03/2015,ADMINISTRATION,"Amazon Svcs Europe,SAR",3.90 ,Book stores,Books and Periodicals,Not applicable
09/03/2015,EDUCATION AND SOCIAL SERVICES,MAYFAIR TAXIS,16.00 ,Taxicabs & limousines,Travel - Air/Rail/Road,Not applicable
09/03/2015,EDUCATION AND SOCIAL SERVICES,PP TOWNCOUNTRY,50.40 ,Taxicabs & limousines,Travel - Air/Rail/Road,Not applicable
09/03/2015,EDUCATION AND SOCIAL SERVICES,VIRGINTRAINS.CO.UK,-80.00 ,Passenger railways,Travel - Air/Rail/Road,Not applicable
09/03/2015,EDUCATION AND SOCIAL SERVICES,ASDA HOME SHOPPING,42.56 ,Grocery stores,General Retail and Wholesale,Not applicable
09/03/2015,HOUSING AND COMMUNITY SERVICES,TRAVELODGE WEBSITE,55.10 ,Emergency Accommodation,Hotels and Accommodation,Not applicable
09/03/2015,HOUSING AND COMMUNITY SERVICES,WWW.DVLA.GOV.UK,227.50 ,Government services,Statutory Bodies,Not applicable
09/03/2015,HOUSING AND COMMUNITY SERVICES,WWW.DVLA.GOV.UK,227.50 ,Government services,Statutory Bodies,Not applicable
09/03/2015,HOUSING AND COMMUNITY SERVICES,WWW.DVLA.GOV.UK,222.50 ,Government services,Statutory Bodies,Not applicable
09/03/2015,HOUSING AND COMMUNITY SERVICES,WWW.DVLA.GOV.UK,207.50 ,Government services,Statutory Bodies,Not applicable
09/03/2015,HOUSING AND COMMUNITY SERVICES,WWW.DVLA.GOV.UK,132.50 ,Government services,Statutory Bodies,Not applicable
09/03/2015,HOUSING AND COMMUNITY SERVICES,WWW.DVLA.GOV.UK,132.50 ,Government services,Statutory Bodies,Not applicable
09/03/2015,SCHOOLS,INTERFLORA BRITISH UNI,44.98 ,Florists,Estate and Garden Services,Not applicable
09/03/2015,ADMINISTRATION,"Amazon Svcs Europe,SAR",84.40 ,Book stores,Books and Periodicals,Not applicable
09/03/2015,ADMINISTRATION,"Amazon Svcs Europe,SAR",109.86 ,Book stores,Books and Periodicals,Not applicable
09/03/2015,ADMINISTRATION,Amazon UK Retail,12.48 ,Direct sales companies,Mail Order / Direct Selling,Not applicable
09/03/2015,ADMINISTRATION,Amazon UK Retail,19.47 ,Direct sales companies,Mail Order / Direct Selling,Not applicable
10/03/2015,FINANCE,HMCOURTS-SERVICE.G,4821.00 ,Payment of Court Fees,Statutory Bodies,Not applicable
10/03/2015,EDUCATION AND SOCIAL SERVICES,SOUTHWESTTRAINS,168.00 ,Passenger railways,Travel - Air/Rail/Road,Not applicable
10/03/2015,EDUCATION AND SOCIAL SERVICES,SOUTHWESTTRAINS,95.30 ,Passenger railways,Travel - Air/Rail/Road,Not applicable
10/03/2015,EDUCATION AND SOCIAL SERVICES,TRAVELODGE WEBSITE,566.00 ,Travelodge,Hotels and Accommodation,Not applicable
10/03/2015,EDUCATION AND SOCIAL SERVICES,KLM UNITED  0742494011564,1011.56 ,KLM,Travel - Air/Rail/Road,Not applicable
10/03/2015,EDUCATION AND SOCIAL SERVICES,VIRGINTRAINS.CO.UK,146.00 ,Passenger railways,Travel - Air/Rail/Road,Not applicable
10/03/2015,HOUSING AND COMMUNITY SERVICES,TFL CC/LEZ PENALTY,195.00 ,Toll and bridge fees,Travel - Air/Rail/Road,Not applicable
10/03/2015,HOUSING AND COMMUNITY SERVICES,TRAVELODGE WEBSITE,95.95 ,Emergency Accommodation,Hotels and Accommodation,Not applicable
10/03/2015,ADMINISTRATION,"Amazon Svcs Europe,SAR",20.85 ,Book stores,Books and Periodicals,Not applicable
11/03/2015,EDUCATION AND SOCIAL SERVICES,OYSTER BUS AUTOTOP,20.00 ,Passenger railways,Travel - Air/Rail/Road,Not applicable
11/03/2015,EDUCATION AND SOCIAL SERVICES,THE CHILTERN RLYWY,12.00 ,Passenger railways,Travel - Air/Rail/Road,Not applicable
11/03/2015,EDUCATION AND SOCIAL SERVICES,VIRGINTRAINS.CO.UK,91.00 ,Passenger railways,Travel - Air/Rail/Road,Not applicable
11/03/2015,HOUSING AND COMMUNITY SERVICES,TRAVELODGE WEBSITE,73.15 ,Emergency Accommodation,Hotels and Accommodation,Not applicable
11/03/2015,HOUSING AND COMMUNITY SERVICES,OYSTER AUTOTOPUP,20.00 ,Passenger railways,Travel - Air/Rail/Road,Not applicable
11/03/2015,HOUSING AND COMMUNITY SERVICES,OYSTER AUTOTOPUP,20.00 ,Passenger railways,Travel - Air/Rail/Road,Not applicable
11/03/2015,HOUSING AND COMMUNITY SERVICES,OYSTER BUS AUTOTOP,20.00 ,Passenger railways,Travel - Air/Rail/Road,Not applicable
11/03/2015,HOUSING AND COMMUNITY SERVICES,OYSTER BUS AUTOTOP,20.00 ,Passenger railways,Travel - Air/Rail/Road,Not applicable
11/03/2015,SCHOOLS,HOLIDAY INN,331.44 ,Holiday Inn,Hotels and Accommodation,Not applicable
11/03/2015,ADMINISTRATION,Amazon UK Retail,19.47 ,Direct sales companies,Mail Order / Direct Selling,Not applicable
12/03/2015,EDUCATION AND SOCIAL SERVICES,VIRGINTRAINS.CO.UK,90.00 ,Passenger railways,Travel - Air/Rail/Road,Not applicable
12/03/2015,EDUCATION AND SOCIAL SERVICES,VIRGINTRAINS.CO.UK,56.60 ,Passenger railways,Travel - Air/Rail/Road,Not applicable
12/03/2015,HOUSING AND COMMUNITY SERVICES,TRAVELODGE WEBSITE,73.15 ,Emergency Accommodation,Hotels and Accommodation,Not applicable
12/03/2015,HOUSING AND COMMUNITY SERVICES,OYSTER AUTOTOPUP,20.00 ,Passenger railways,Travel - Air/Rail/Road,Not applicable
12/03/2015,HOUSING AND COMMUNITY SERVICES,OYSTER BUS AUTOTOP,20.00 ,Passenger railways,Travel - Air/Rail/Road,Not applicable
12/03/2015,HOUSING AND COMMUNITY SERVICES,TRAVELODGE WEBSITE,52.00 ,Emergency Accommodation,Hotels and Accommodation,Not applicable
13/03/2015,EDUCATION AND SOCIAL SERVICES,OYSTER BUS AUTOTOP,20.00 ,Passenger railways,Travel - Air/Rail/Road,Not applicable
13/03/2015,EDUCATION AND SOCIAL SERVICES,EURO HOTEL CLAPHAM,540.00 ,"Hotels, motels & resorts",Hotels and Accommodation,Not applicable
13/03/2015,HOUSING AND COMMUNITY SERVICES,TRAVELODGE WEBSITE,185.25 ,Emergency Accommodation,Hotels and Accommodation,Not applicable
13/03/2015,HOUSING AND COMMUNITY SERVICES,TRAVELODGE WEBSITE,180.50 ,Emergency Accommodation,Hotels and Accommodation,Not applicable
13/03/2015,HOUSING AND COMMUNITY SERVICES,DVSA,1000.00 ,Government services,Statutory Bodies,Not applicable
13/03/2015,HOUSING AND COMMUNITY SERVICES,OYSTER AUTOTOPUP,20.00 ,Passenger railways,Travel - Air/Rail/Road,Not applicable
13/03/2015,HOUSING AND COMMUNITY SERVICES,OYSTER AUTOTOPUP,20.00 ,Passenger railways,Travel - Air/Rail/Road,Not applicable
13/03/2015,HOUSING AND COMMUNITY SERVICES,OYSTER BUS AUTOTOP,20.00 ,Passenger railways,Travel - Air/Rail/Road,Not applicable
13/03/2015,FINANCE,OYSTER BUS AUTOTOP,20.00 ,Passenger railways,Travel - Air/Rail/Road,Not applicable
13/03/2015,HOUSING AND COMMUNITY SERVICES,TRAVELODGE WEBSITE,198.95 ,Emergency Accommodation,Hotels and Accommodation,Not applicable
13/03/2015,ADMINISTRATION,"Amazon Svcs Europe,SAR",37.28 ,Book stores,Books and Periodicals,Not applicable
13/03/2015,ADMINISTRATION,"Amazon Svcs Europe,SAR",15.99 ,Book stores,Books and Periodicals,Not applicable
14/03/2015,HOUSING AND COMMUNITY SERVICES,OYSTER AUTOTOPUP,20.00 ,Passenger railways,Travel - Air/Rail/Road,Not applicable
14/03/2015,HOUSING AND COMMUNITY SERVICES,OYSTER AUTOTOPUP,20.00 ,Passenger railways,Travel - Air/Rail/Road,Not applicable
14/03/2015,HOUSING AND COMMUNITY SERVICES,OYSTER BUS AUTOTOP,20.00 ,Passenger railways,Travel - Air/Rail/Road,Not applicable
15/03/2015,EDUCATION AND SOCIAL SERVICES,OYSTER AUTOTOPUP,20.00 ,Passenger railways,Travel - Air/Rail/Road,Not applicable
15/03/2015,EDUCATION AND SOCIAL SERVICES,OYSTER BUS AUTOTOP,20.00 ,Passenger railways,Travel - Air/Rail/Road,Not applicable
15/03/2015,HOUSING AND COMMUNITY SERVICES,OYSTER AUTOTOPUP,20.00 ,Passenger railways,Travel - Air/Rail/Road,Not applicable
15/03/2015,HOUSING AND COMMUNITY SERVICES,OYSTER AUTOTOPUP,20.00 ,Passenger railways,Travel - Air/Rail/Road,Not applicable
15/03/2015,HOUSING AND COMMUNITY SERVICES,OYSTER BUS AUTOTOP,20.00 ,Passenger railways,Travel - Air/Rail/Road,Not applicable
15/03/2015,FINANCE,"Amazon Svcs Europe,SAR",31.28 ,Book stores,Books and Periodicals,Not applicable
15/03/2015,FINANCE,OYSTER AUTOTOPUP,20.00 ,Passenger railways,Travel - Air/Rail/Road,Not applicable
15/03/2015,ADMINISTRATION,Amazon UK Retail,42.60 ,Direct sales companies,Mail Order / Direct Selling,Not applicable
16/03/2015,EDUCATION AND SOCIAL SERVICES,SOUTHWESTTRAINS,60.00 ,Passenger railways,Travel - Air/Rail/Road,Not applicable
16/03/2015,EDUCATION AND SOCIAL SERVICES,SOUTHWESTTRAINS,37.90 ,Passenger railways,Travel - Air/Rail/Road,Not applicable
16/03/2015,EDUCATION AND SOCIAL SERVICES,ASDA HOME SHOPPING,46.90 ,Grocery stores,General Retail and Wholesale,Not applicable
16/03/2015,HOUSING AND COMMUNITY SERVICES,TFL PENALTY CHARGE,65.00 ,Fines,Statutory Bodies,Not applicable
17/03/2015,EDUCATION AND SOCIAL SERVICES,GTR WEB RAIL SALES,22.90 ,Passenger railways,Travel - Air/Rail/Road,Not applicable
17/03/2015,EDUCATION AND SOCIAL SERVICES,GTR WEB RAIL SALES,32.80 ,Passenger railways,Travel - Air/Rail/Road,Not applicable
17/03/2015,HOUSING AND COMMUNITY SERVICES,TRAVELODGE WEBSITE,77.90 ,Emergency Accommodation,Hotels and Accommodation,Not applicable
17/03/2015,HOUSING AND COMMUNITY SERVICES,MAILCHIMP,38.46 ,Misc business services,Miscellaneous Industrial/Commercial Supplies,Not applicable
17/03/2015,ADMINISTRATION,SAINSBURY'S S/MKT,47.34 ,Grocery stores,General Retail and Wholesale,Not applicable
17/03/2015,ADMINISTRATION,Amazon UK Marketplace,13.74 ,Miscellaneous retail,General Retail and Wholesale,Not applicable
17/03/2015,ADMINISTRATION,Amazon UK Retail,44.14 ,Direct sales companies,Mail Order / Direct Selling,Not applicable
17/03/2015,ADMINISTRATION,OYSTER ISSUE WEB,55.00 ,Passenger railways,Travel - Air/Rail/Road,Not applicable
17/03/2015,ADMINISTRATION,OYSTER ISSUE WEB,55.00 ,Passenger railways,Travel - Air/Rail/Road,Not applicable
18/03/2015,SCHOOLS,OYSTER AUTOTOPUP,20.00 ,Passenger railways,Travel - Air/Rail/Road,Not applicable
18/03/2015,SCHOOLS,WWW.THESUPERMARKETONLINE,135.42 ,Stationery & office supplies,"Office Stationery, Equipment and Supplies",Not applicable
18/03/2015,EDUCATION AND SOCIAL SERVICES,A AND J TAXIS,40.00 ,Taxicabs & limousines,Travel - Air/Rail/Road,Not applicable
18/03/2015,EDUCATION AND SOCIAL SERVICES,SOUTHWESTTRAINS,24.40 ,Passenger railways,Travel - Air/Rail/Road,Not applicable
18/03/2015,HOUSING AND COMMUNITY SERVICES,OYSTER AUTOTOPUP,20.00 ,Passenger railways,Travel - Air/Rail/Road,Not applicable
18/03/2015,HOUSING AND COMMUNITY SERVICES,OYSTER BUS AUTOTOP,20.00 ,Passenger railways,Travel - Air/Rail/Road,Not applicable
18/03/2015,HOUSING AND COMMUNITY SERVICES,TFL PENALTY CHARGE,130.00 ,Fines,Statutory Bodies,Not applicable
19/03/2015,SCHOOLS,OYSTER BUS AUTOTOP,20.00 ,Passenger railways,Travel - Air/Rail/Road,Not applicable
19/03/2015,EDUCATION AND SOCIAL SERVICES,WWW.AIRHOPTRAMPELINEOA,280.00 ,Sport & recreational camps,Leisure Activities,Not applicable
19/03/2015,HOUSING AND COMMUNITY SERVICES,EURO HOTEL CLAPHAM,79.00 ,"Hotels, motels & resorts",Hotels and Accommodation,Not applicable
19/03/2015,HOUSING AND COMMUNITY SERVICES,OYSTER AUTOTOPUP,20.00 ,Passenger railways,Travel - Air/Rail/Road,Not applicable
19/03/2015,FINANCE,OYSTER AUTOTOPUP,20.00 ,Passenger railways,Travel - Air/Rail/Road,Not applicable
19/03/2015,HOUSING AND COMMUNITY SERVICES,TRAVELODGE WEBSITE,74.95 ,Emergency Accommodation,Hotels and Accommodation,Not applicable
19/03/2015,ADMINISTRATION,ASDA SUPERSTORE,30.00 ,Grocery stores,General Retail and Wholesale,Not applicable
19/03/2015,ADMINISTRATION,"Amazon Svcs Europe,SAR",6.59 ,Book stores,Books and Periodicals,Not applicable
19/03/2015,ADMINISTRATION,Amazon UK Retail,82.58 ,Direct sales companies,Mail Order / Direct Selling,Not applicable
19/03/2015,ADMINISTRATION,Amazon UK Retail,18.70 ,Direct sales companies,Mail Order / Direct Selling,Not applicable
19/03/2015,ADMINISTRATION,Amazon UK Retail,65.00 ,Direct sales companies,Mail Order / Direct Selling,Not applicable
20/03/2015,SCHOOLS,TESCO STORES 5999,37.50 ,Grocery stores,General Retail and Wholesale,Not applicable
20/03/2015,EDUCATION AND SOCIAL SERVICES,FREEDOM LEISURE,198.00 ,Misc. recreational services,Leisure Activities,Not applicable
20/03/2015,EDUCATION AND SOCIAL SERVICES,PGL TRAVEL LIMITED,394.11 ,Travel agencies,Travel - Air/Rail/Road,Not applicable
20/03/2015,EDUCATION AND SOCIAL SERVICES,PGL TRAVEL LIMITED,720.00 ,Travel agencies,Travel - Air/Rail/Road,Not applicable
20/03/2015,EDUCATION AND SOCIAL SERVICES,PREMIER INN44024500,51.00 ,Premier Inn,Hotels and Accommodation,Not applicable
20/03/2015,HOUSING AND COMMUNITY SERVICES,OYSTER BUS AUTOTOP,20.00 ,Passenger railways,Travel - Air/Rail/Road,Not applicable
20/03/2015,ADMINISTRATION,"Amazon Svcs Europe,SAR",48.96 ,Book stores,Books and Periodicals,Not applicable
20/03/2015,ADMINISTRATION,Amazon UK Retail,-42.60 ,Direct sales companies,Mail Order / Direct Selling,Not applicable
21/03/2015,EDUCATION AND SOCIAL SERVICES,OYSTER AUTOTOPUP,20.00 ,Passenger railways,Travel - Air/Rail/Road,Not applicable
21/03/2015,HOUSING AND COMMUNITY SERVICES,OYSTER BUS AUTOTOP,20.00 ,Passenger railways,Travel - Air/Rail/Road,Not applicable
21/03/2015,HOUSING AND COMMUNITY SERVICES,OYSTER BUS AUTOTOP,20.00 ,Passenger railways,Travel - Air/Rail/Road,Not applicable
22/03/2015,EDUCATION AND SOCIAL SERVICES,OYSTER BUS AUTOTOP,20.00 ,Passenger railways,Travel - Air/Rail/Road,Not applicable
22/03/2015,ADMINISTRATION,ICELAND,7.50 ,Grocery stores,General Retail and Wholesale,Not applicable
22/03/2015,ADMINISTRATION,MARKS & SPENCER,28.87 ,Grocery stores,General Retail and Wholesale,Not applicable
23/03/2015,EDUCATION AND SOCIAL SERVICES,MITCHAM BELLE COAC,435.62 ,Taxicabs & limousines,Travel - Air/Rail/Road,Not applicable
23/03/2015,EDUCATION AND SOCIAL SERVICES,ASDA HOME SHOPPING,48.53 ,Grocery stores,General Retail and Wholesale,Not applicable
23/03/2015,ADMINISTRATION,CO-OP GROUP FOOD,2.00 ,Grocery stores,General Retail and Wholesale,Not applicable
23/03/2015,ADMINISTRATION,TESCO STORE 3235,10.00 ,Grocery stores,General Retail and Wholesale,Not applicable
23/03/2015,ADMINISTRATION,"Amazon Svcs Europe,SAR",14.99 ,Book stores,Books and Periodicals,Not applicable
23/03/2015,ADMINISTRATION,"Amazon Svcs Europe,SAR",69.49 ,Book stores,Books and Periodicals,Not applicable
23/03/2015,ADMINISTRATION,GLOBAL GOLD NETWORK LT,15.36 ,Computer software stores,Computer Equipment & Services,Not applicable
24/03/2015,EDUCATION AND SOCIAL SERVICES,OYSTER BUS AUTOTOP,20.00 ,Passenger railways,Travel - Air/Rail/Road,Not applicable
24/03/2015,EDUCATION AND SOCIAL SERVICES,OYSTER BUS AUTOTOP,20.00 ,Passenger railways,Travel - Air/Rail/Road,Not applicable
24/03/2015,EDUCATION AND SOCIAL SERVICES,SOUTHWESTTRAINS,31.20 ,Passenger railways,Travel - Air/Rail/Road,Not applicable
24/03/2015,EDUCATION AND SOCIAL SERVICES,SOUTHWESTTRAINS,34.10 ,Passenger railways,Travel - Air/Rail/Road,Not applicable
24/03/2015,EDUCATION AND SOCIAL SERVICES,SOUTHWESTTRAINS,31.20 ,Passenger railways,Travel - Air/Rail/Road,Not applicable
24/03/2015,EDUCATION AND SOCIAL SERVICES,SOUTHWESTTRAINS,34.70 ,Passenger railways,Travel - Air/Rail/Road,Not applicable
24/03/2015,EDUCATION AND SOCIAL SERVICES,PGL TRAVEL LIMITED,1238.20 ,Travel agencies,Travel - Air/Rail/Road,Not applicable
24/03/2015,EDUCATION AND SOCIAL SERVICES,PGL TRAVEL LIMITED,1238.20 ,Travel agencies,Travel - Air/Rail/Road,Not applicable
24/03/2015,EDUCATION AND SOCIAL SERVICES,PGL TRAVEL LIMITED,1238.20 ,Travel agencies,Travel - Air/Rail/Road,Not applicable
24/03/2015,EDUCATION AND SOCIAL SERVICES,KLM UNITED  0742494246708,477.71 ,KLM,Travel - Air/Rail/Road,Not applicable
24/03/2015,EDUCATION AND SOCIAL SERVICES,KLM UNITED  0742494246709,477.71 ,KLM,Travel - Air/Rail/Road,Not applicable
24/03/2015,EDUCATION AND SOCIAL SERVICES,KLM UNITED  0742494246710,477.71 ,KLM,Travel - Air/Rail/Road,Not applicable
24/03/2015,EDUCATION AND SOCIAL SERVICES,KLM UNITED  0742494246711,477.71 ,KLM,Travel - Air/Rail/Road,Not applicable
24/03/2015,EDUCATION AND SOCIAL SERVICES,WWW.TENPIN.CO.UK,121.80 ,"Member clubs, sport, recreation & golf",Leisure Activities,Not applicable
24/03/2015,HOUSING AND COMMUNITY SERVICES,OYSTER BUS AUTOTOP,20.00 ,Passenger railways,Travel - Air/Rail/Road,Not applicable
24/03/2015,ADMINISTRATION,"Amazon Svcs Europe,SAR",23.70 ,Book stores,Books and Periodicals,Not applicable
24/03/2015,ADMINISTRATION,"Amazon Svcs Europe,SAR",23.70 ,Book stores,Books and Periodicals,Not applicable
24/03/2015,ADMINISTRATION,"Amazon Svcs Europe,SAR",32.32 ,Book stores,Books and Periodicals,Not applicable
24/03/2015,SCHOOLS,"Amazon Svcs Europe,SAR",102.48 ,Book stores,Books and Periodicals,Not applicable
25/03/2015,EDUCATION AND SOCIAL SERVICES,CROYDON PARK HOTEL,195.30 ,"Hotels, motels & resorts",Hotels and Accommodation,Not applicable
25/03/2015,EDUCATION AND SOCIAL SERVICES,CROYDON PARK HOTEL,195.30 ,"Hotels, motels & resorts",Hotels and Accommodation,Not applicable
25/03/2015,EDUCATION AND SOCIAL SERVICES,AMBER TAXIS (ALFRE,16.00 ,Taxicabs & limousines,Travel - Air/Rail/Road,Not applicable
25/03/2015,EDUCATION AND SOCIAL SERVICES,EAST MIDLANDS,57.50 ,Passenger railways,Travel - Air/Rail/Road,Not applicable
25/03/2015,EDUCATION AND SOCIAL SERVICES,VIRGINTRAINS.CO.UK,70.60 ,Passenger railways,Travel - Air/Rail/Road,Not applicable
25/03/2015,EDUCATION AND SOCIAL SERVICES,WEBTIS,12.35 ,Passenger railways,Travel - Air/Rail/Road,Not applicable
25/03/2015,HOUSING AND COMMUNITY SERVICES,OYSTER AUTOTOPUP,20.00 ,Passenger railways,Travel - Air/Rail/Road,Not applicable
25/03/2015,HOUSING AND COMMUNITY SERVICES,OYSTER AUTOTOPUP,20.00 ,Passenger railways,Travel - Air/Rail/Road,Not applicable
25/03/2015,ADMINISTRATION,SAINSBURY'S S/MKT,33.20 ,Grocery stores,General Retail and Wholesale,Not applicable
25/03/2015,ADMINISTRATION,Amazon UK Marketplace,26.49 ,Miscellaneous retail,General Retail and Wholesale,Not applicable
26/03/2015,EDUCATION AND SOCIAL SERVICES,SOUTHWESTTRAINS,41.00 ,Passenger railways,Travel - Air/Rail/Road,Not applicable
26/03/2015,EDUCATION AND SOCIAL SERVICES,SOUTHWESTTRAINS,57.60 ,Passenger railways,Travel - Air/Rail/Road,Not applicable
26/03/2015,EDUCATION AND SOCIAL SERVICES,SOUTHWESTTRAINS,186.00 ,Passenger railways,Travel - Air/Rail/Road,Not applicable
26/03/2015,EDUCATION AND SOCIAL SERVICES,TROPICAL SKY LTD,1308.80 ,Travel agencies,Travel - Air/Rail/Road,Not applicable
26/03/2015,EDUCATION AND SOCIAL SERVICES,EAST MIDLANDS,49.50 ,Passenger railways,Travel - Air/Rail/Road,Not applicable
26/03/2015,EDUCATION AND SOCIAL SERVICES,VIRGINTRAINS.CO.UK,70.60 ,Passenger railways,Travel - Air/Rail/Road,Not applicable
26/03/2015,EDUCATION AND SOCIAL SERVICES,VIRGINTRAINS.CO.UK,75.30 ,Passenger railways,Travel - Air/Rail/Road,Not applicable
26/03/2015,EDUCATION AND SOCIAL SERVICES,WEBTIS,17.50 ,Passenger railways,Travel - Air/Rail/Road,Not applicable
26/03/2015,EDUCATION AND SOCIAL SERVICES,AIRHOP TRAMPELINE PARK,144.50 ,Sport & recreational camps,Leisure Activities,Not applicable
26/03/2015,HOUSING AND COMMUNITY SERVICES,HOMEBASE LTD 066,22.80 ,Timber & building supplies,Building Materials,Not applicable
26/03/2015,HOUSING AND COMMUNITY SERVICES,HOMEBASE LTD 066,448.40 ,Timber & building supplies,Building Materials,Not applicable
26/03/2015,HOUSING AND COMMUNITY SERVICES,OYSTER BUS AUTOTOP,20.00 ,Passenger railways,Travel - Air/Rail/Road,Not applicable
26/03/2015,HOUSING AND COMMUNITY SERVICES,OYSTER BUS AUTOTOP,20.00 ,Passenger railways,Travel - Air/Rail/Road,Not applicable
26/03/2015,FINANCE,OYSTER BUS AUTOTOP,20.00 ,Passenger railways,Travel - Air/Rail/Road,Not applicable
26/03/2015,ADMINISTRATION,ASDA STORES,10.38 ,Grocery stores,General Retail and Wholesale,Not applicable
26/03/2015,ADMINISTRATION,CONGESTION CHARGE,10.50 ,Toll and bridge fees,Travel - Air/Rail/Road,Not applicable
26/03/2015,ADMINISTRATION,Amazon UK Marketplace,4.00 ,Miscellaneous retail,General Retail and Wholesale,Not applicable
26/03/2015,EDUCATION AND SOCIAL SERVICES,SANGALLO PALACE HOTEL,373.87 ,"Hotels, motels & resorts",Hotels and Accommodation,Not applicable
27/03/2015,EDUCATION AND SOCIAL SERVICES,FREEDOM LEISURE,60.00 ,Misc. recreational services,Leisure Activities,Not applicable
27/03/2015,EDUCATION AND SOCIAL SERVICES,VIRGINTRAINS.CO.UK,85.90 ,Passenger railways,Travel - Air/Rail/Road,Not applicable
27/03/2015,EDUCATION AND SOCIAL SERVICES,ASDA HOME SHOPPING,58.98 ,Grocery stores,General Retail and Wholesale,Not applicable
27/03/2015,HOUSING AND COMMUNITY SERVICES,HOMEBASE LTD 066,1442.10 ,Timber & building supplies,Building Materials,Not applicable
27/03/2015,HOUSING AND COMMUNITY SERVICES,OYSTER AUTOTOPUP,20.00 ,Passenger railways,Travel - Air/Rail/Road,Not applicable
27/03/2015,FINANCE,OYSTER ISSUE WEB,15.00 ,Passenger railways,Travel - Air/Rail/Road,Not applicable
27/03/2015,FINANCE,OYSTER ISSUE WEB,15.00 ,Passenger railways,Travel - Air/Rail/Road,Not applicable
27/03/2015,FINANCE,OYSTER ISSUE WEB,15.00 ,Passenger railways,Travel - Air/Rail/Road,Not applicable
27/03/2015,FINANCE,OYSTER ISSUE WEB,15.00 ,Passenger railways,Travel - Air/Rail/Road,Not applicable
27/03/2015,FINANCE,OYSTER ISSUE WEB,15.00 ,Passenger railways,Travel - Air/Rail/Road,Not applicable
27/03/2015,HOUSING AND COMMUNITY SERVICES,TRAVELODGE WEBSITE,228.95 ,Emergency Accommodation,Hotels and Accommodation,Not applicable
28/03/2015,EDUCATION AND SOCIAL SERVICES,OYSTER AUTOTOPUP,20.00 ,Passenger railways,Travel - Air/Rail/Road,Not applicable
28/03/2015,HOUSING AND COMMUNITY SERVICES,OYSTER AUTOTOPUP,20.00 ,Passenger railways,Travel - Air/Rail/Road,Not applicable
28/03/2015,FINANCE,OYSTER AUTOTOPUP,20.00 ,Passenger railways,Travel - Air/Rail/Road,Not applicable
30/03/2015,EDUCATION AND SOCIAL SERVICES,OYSTER BUS AUTOTOP,20.00 ,Passenger railways,Travel - Air/Rail/Road,Not applicable
30/03/2015,EDUCATION AND SOCIAL SERVICES,ASDA HOME SHOPPING,136.74 ,Grocery stores,General Retail and Wholesale,Not applicable
30/03/2015,HOUSING AND COMMUNITY SERVICES,OYSTER AUTOTOPUP,20.00 ,Passenger railways,Travel - Air/Rail/Road,Not applicable
30/03/2015,HOUSING AND COMMUNITY SERVICES,OYSTER AUTOTOPUP,20.00 ,Passenger railways,Travel - Air/Rail/Road,Not applicable
30/03/2015,HOUSING AND COMMUNITY SERVICES,OYSTER BUS AUTOTOP,20.00 ,Passenger railways,Travel - Air/Rail/Road,Not applicable
30/03/2015,FINANCE,OYSTER BUS AUTOTOP,20.00 ,Passenger railways,Travel - Air/Rail/Road,Not applicable
30/03/2015,HOUSING AND COMMUNITY SERVICES,WWW.DVLA.GOV.UK,19.50 ,Government services,Statutory Bodies,Not applicable
30/03/2015,HOUSING AND COMMUNITY SERVICES,WWW.DVLA.GOV.UK,82.50 ,Government services,Statutory Bodies,Not applicable
30/03/2015,HOUSING AND COMMUNITY SERVICES,WWW.DVLA.GOV.UK,227.50 ,Government services,Statutory Bodies,Not applicable
30/03/2015,HOUSING AND COMMUNITY SERVICES,WWW.DVLA.GOV.UK,227.50 ,Government services,Statutory Bodies,Not applicable
30/03/2015,HOUSING AND COMMUNITY SERVICES,WWW.DVLA.GOV.UK,82.50 ,Government services,Statutory Bodies,Not applicable
30/03/2015,HOUSING AND COMMUNITY SERVICES,WWW.DVLA.GOV.UK,227.50 ,Government services,Statutory Bodies,Not applicable
30/03/2015,HOUSING AND COMMUNITY SERVICES,WWW.DVLA.GOV.UK,19.50 ,Government services,Statutory Bodies,Not applicable
30/03/2015,HOUSING AND COMMUNITY SERVICES,WWW.DVLA.GOV.UK,227.50 ,Government services,Statutory Bodies,Not applicable
